Cogmind - Beta 15 @@@ ROGUE MODE // 2025.05.16 @ 06:04:17 Player: Savant Result: Escaped! Performance ------------- Evolutions (9) 4500 Regions Visited (25) 5000 Robots Destroyed (445) 2225 Value Destroyed (28977) 28977 Prototype IDs (163) 3260 Alien Tech Used (8) 1600 Bonus (21123) 21123 TOTAL SCORE: 66685 Bonus ------- Triggered High Security 1000 High Alert Combat Kills 8200 Follower Combat Kills 4811 Network Hubs Disabled 400 Registered with UFD 300 Met Optimus in HQ 500 Met Imprinter 300 Met Warlord at Base 500 MAIN.C Attacked Warlord 500 Built Enhanced Grunts 300 Found Hidden Lab 3000 Scanned by Researcher 500 Win 3000 Friendly Fire -2188 Cogmind --------- Core Integrity 1198/1600 Matter 190/300 Energy 1482/1490 System Corruption 4% Temperature Cool (4) Movement Walking (110) Location To Epsilon Eridani Parts ------- > --- POWER (3) -------- Light Quantum Reactor Hybrid Graviton Reactor > --- PROPULSION (7) --- Experimental Armored Exoskeleton Concept Biometal Exoskeleton > --- UTILITY (13) ----- Concept Phasing Heat Sink Concept Thermoelectric Network Concept Antigrav Storage Unit Enhanced Optical Array Experimental Signal Interpreter Advanced Targeting Computer Concept Hypertargeting System Quantum Capacitor Concept RG22 Armor Graphene Brace Concept Navigation Harness > --- WEAPON (3) ------- Concept Deflector Sword > --- INVENTORY (25) --- Hybrid Graviton Reactor Concept Zero-point Core Concept Biometal Exoskeleton Concept Chromion Battery (800) Concept Chromion Battery (800) Concept NT7 Matterbank (750) Concept Networked Targeting System Experimental Kinecellerator Advanced Weapon Cycler Concept Matter Streamer Advanced Trap Extractor (6/8 Fire) Transdimensional Reconstructor Subatomic Replicator Concept Disintegration Ray (48) Vortex Cannon (26) Vortex Cannon (26) Concept Plasma Driver Concept Miniperforator Concept Rapid Grenade Launcher Peak State ------------ > --- POWER ------------ Experimental Antimatter Reactor Hybrid Graviton Reactor Concept Zero-point Core > --- PROPULSION ------- Experimental Armored Exoskeleton Concept Biometal Exoskeleton > --- UTILITY ---------- Concept Phasing Heat Sink Concept Thermoelectric Network Concept Antigrav Storage Unit Experimental Signal Interpreter Concept Hypertargeting System Concept Networked Targeting System Concept Cloak Mesh Medium Regenerative Plating Concept RG22 Armor Graphene Brace System Mapper Concept Navigation Harness > --- WEAPON ----------- Concept Plasma Driver Concept Heavy Railcannon > --- INVENTORY -------- Hybrid Graviton Reactor Concept Zero-point Core Concept Biometal Exoskeleton Concept Chromion Battery Concept Chromion Battery Concept NT7 Matterbank Concept Networked Targeting System Experimental Kinecellerator Quantum Capacitor Concept Matter Streamer Advanced Trap Extractor Transdimensional Reconstructor High-powered Transdimensional Reconstructor Subatomic Replicator Concept Disintegration Ray Vortex Cannon Vortex Cannon Concept Plasma Driver Concept Miniperforator Concept Rapid Grenade Launcher Concept Deflector Sword [Rating: 304] Favorites ----------- Power Fission Core Engine Heavy Deuterium Engine Power Core Fission Core Reactor Quantum Reactor Propulsion Overtuned Huge Scrapsphere Treads High-density Centrium Heavy Treads Leg Armored Leg Wheel Overtuned Huge Scrapsphere Hover Unit Concept Combat Aerolev Unit Flight Unit Experimental Surge Thruster Utility Scrap Suit Device Scrap Suit Storage Huge Storage Unit Processor Experimental Signal Interpreter Hackware System Mapper Protection Centrium Medium Armor Plating Weapon Junk Cannon Energy Gun Subdweller Laser Energy Cannon Compact HERF Cannon Ballistic Gun Advanced KE Penetrator Ballistic Cannon Hypervelocity Gauss Cannon Launcher Heavy Missile Launcher Special Weapon Junk Cannon Impact Weapon Thunder Hammer Slashing Weapon Power Sword Piercing Weapon Enhanced Force Lance Special Melee Weapon Datajack Build | -11 -10 -10 -9 -6 -6 -6 -6 -5 -5 -5 -5 -5 -5 -4 -4 -4 -4 -3 -3 -3 -3 -2 -2 -2 -1 ------- Run | Yrd Mat Sub Scr Fac Low Low Zio Pro Fac Ext Cet Arc Hub Fac Upp Upp War Pro Res Arm Lab Res Qua Frg Acc Slots Evolved 18 | . . . . 8 . . . . 2 . . . . 2 . . . . 2 . . 2 . . 2 Power 2 | . . . . . . . . . . . . . . 1 . . . . . . . 1 . . . Propulsion 4 | . . . . 2 . . . . 1 . . . . . . . . . . . . . . . 1 Utility 11 | . . . . 5 . . . . 1 . . . . 1 . . . . 2 . . 1 . . 1 Weapon 1 | . . . . 1 . . . . . . . . . . . . . . . . . . . . . Parts Attached 331 | 9 5 13 8 41 3 3 2 2 16 7 3 3 8 24 5 5 11 4 19 24 6 13 18 70 9 Power 38 | 1 . 1 2 4 1 . . 1 3 . . 1 2 1 . . 1 1 1 3 . 3 3 7 2 Engine 5 | 1 . 1 1 1 . . . . 1 . . . . . . . . . . . . . . . . Core 7 | . . . 1 3 . . . 1 . . . . . . . . . . . 1 . . . 1 . Reactor 26 | . . . . . 1 . . . 2 . . 1 2 1 . . 1 1 1 2 . 3 3 6 2 Propulsion 64 | 2 1 3 2 8 . . . . 4 2 . . 2 3 . 1 3 1 1 2 . . 4 24 1 Treads 23 | 1 1 2 . 2 . . . . . . . . 1 . . 1 . . 1 2 . . 4 8 . Leg 18 | . . . . 6 . . . . 4 . . . 1 . . . 2 1 . . . . . 3 1 Wheel 14 | 1 . 1 2 . . . . . . 2 . . . 3 . . . . . . . . . 5 . Hover 5 | . . . . . . . . . . . . . . . . . 1 . . . . . . 4 . Flight 4 | . . . . . . . . . . . . . . . . . . . . . . . . 4 . Utility 144 | 3 1 4 . 21 2 2 2 . 6 3 2 . 3 14 3 2 4 1 12 13 4 6 6 24 6 Device 91 | 2 . . . 11 1 2 2 . 1 2 1 . 1 9 3 2 4 1 9 9 2 3 6 16 4 Storage 15 | 1 1 1 . 2 1 . . . 1 . . . 1 1 . . . . 1 1 . 1 . 3 . Processor 8 | . . . . . . . . . 1 . . . . 1 . . . . . . 1 1 . 2 2 Hackware 9 | . . . . 1 . . . . 2 . . . 1 1 . . . . 1 2 . 1 . . . Protection 21 | . . 3 . 7 . . . . 1 1 1 . . 2 . . . . 1 1 1 . . 3 . Artifact . | . . . . . . . . . . . . . . . . . . . . . . . . . . Weapon 85 | 3 3 5 4 8 . 1 . 1 3 2 1 2 1 6 2 2 3 1 5 6 2 4 5 15 . Energy Gun 16 | 2 . 2 2 1 . . . . . 1 . 1 . . 1 1 . . . . 1 . 1 3 . Energy Cannon 21 | . . . . 4 . . . 1 3 . . . . 2 . . . 1 2 2 1 2 1 2 . Ballistic Gun 14 | 1 . 2 . . . 1 . . . . 1 1 1 1 1 1 1 . . . . . . 3 . Ballistic Cannon 13 | . . . . 1 . . . . . 1 . . . 2 . . . . 1 1 . 1 2 4 . Launcher 6 | . 1 . . 1 . . . . . . . . . . . . . . 1 1 . . . 2 . Special Weapon 7 | . 1 . 1 . . . . . . . . . . 1 . . 2 . 1 . . 1 . . . Impact Weapon 4 | . 1 1 . . . . . . . . . . . . . . . . . 1 . . 1 . . Slashing Weapon 2 | . . . . 1 . . . . . . . . . . . . . . . . . . . 1 . Piercing Weapon 1 | . . . . . . . . . . . . . . . . . . . . 1 . . . . . Special Melee Weapon 1 | . . . 1 . . . . . . . . . . . . . . . . . . . . . . Unidentified Prototypes 41 | . . . 1 . . . 2 . 5 1 2 . 2 1 . . 6 2 1 . 4 1 8 4 1 Corrupted Parts 7 | . . . . . . . . . . . . . 5 . . . 1 . . . . . . 1 . System Corruption 28 | . . . . . . . . . . . . . 22 . . . 5 . . . . . . 1 . Parts Lost 54 | . . 2 . 2 . . . . 1 1 . . 2 8 . . . . 6 1 . 1 1 20 9 Power 7 | . . . . 2 . . . . . . . . . . . . . . 1 . . . . 3 1 Propulsion 10 | . . 2 . . . . . . 1 . . . . . . . . . . . . . . 7 . Utility 26 | . . . . . . . . . . 1 . . 1 4 . . . . 4 1 . 1 . 8 6 Weapon 11 | . . . . . . . . . . . . . 1 4 . . . . 1 . . . 1 2 2 Highest Loss Streak 6 | . . 2 . 1 . . . . 1 1 . . 2 5 . . . . 3 1 . 1 1 3 6 To Critical Strikes 1 | . . 1 . . . . . . . . . . . . . . . . . . . . . . . Average Backups 20 | 6 11 14 26 17 17 17 18 18 17 18 21 22 22 22 22 22 22 22 22 23 17 23 22 22 20 Power . | . 1 . . . . . . . . . 1 2 3 1 1 1 . . . . . . . 1 1 Propulsion 2 | 3 3 3 5 1 1 2 2 2 2 2 1 2 1 2 3 2 2 1 1 . . . . . 1 Utility 11 | . 1 3 9 11 12 12 12 13 12 12 12 12 11 12 12 12 14 15 15 16 12 15 13 11 8 Weapon 5 | 1 5 6 9 3 3 3 3 3 2 3 5 5 5 4 3 3 4 4 4 5 4 6 5 5 6 Tool/Special . | . . . . . . . . . . . . . . . . . . . . . . . . . . Unused Backups 94 | . 4 5 8 10 2 . 2 . . . . 1 . 3 . . 1 . 6 25 2 2 1 15 7 Power 10 | . . 1 1 1 . . . . . . . . . . . . 1 . 2 2 . . . 1 1 Propulsion 11 | . 2 . 1 2 . . . . . . . . . 2 . . . . . 2 . . . 2 . Utility 39 | . . 1 1 5 1 . 2 . . . . 1 . . . . . . 2 10 2 2 1 8 3 Weapon 24 | . 2 3 4 1 . . . . . . . . . 1 . . . . 2 8 . . . 2 1 Tool/Special 10 | . . . 1 1 1 . . . . . . . . . . . . . . 3 . . . 2 2 Average Slot Usage (%) 80 | . 100 97 71 73 79 80 75 75 79 76 79 76 76 83 83 83 79 78 77 76 65 78 77 80 71 Engine 3 | . 14 14 12 2 5 5 5 5 2 . . . . . . . . . . . . . . . . Core 1 | . . . . 6 5 5 5 5 7 . . . . . . . . . . 1 . . . . 2 Reactor 4 | . . . . . . . . . 2 5 5 5 5 9 10 10 6 5 4 6 9 11 10 7 6 Treads 4 | . 14 23 . . . . . . . . . . . 3 . . 1 . 2 4 4 4 6 10 . Leg 6 | . . . . 21 25 25 25 25 23 25 11 11 11 . . . 3 6 3 . . . . . 7 Wheel 8 | . 13 4 28 . . . . . . . 11 11 11 11 15 14 10 10 9 9 9 8 5 . . Device 19 | . 14 10 . 15 20 20 20 20 14 10 15 21 18 24 30 30 31 30 29 27 26 20 22 27 26 Storage 6 | . 14 14 13 4 5 5 5 5 4 5 5 5 5 5 5 5 5 5 4 4 4 4 4 4 3 Processor 1 | . . . . . . . . . . . . . . . . . . . . . . 7 8 5 3 Hackware 2 | . . . . 2 . . . . 8 10 6 . 3 5 . . . . 3 . . 3 4 4 2 Protection 4 | . . . . 5 5 5 5 5 4 6 5 5 5 6 5 5 5 5 4 7 6 4 2 4 6 Energy Gun 3 | . 16 15 8 5 . . . . . . . . . . 4 5 4 5 2 . . . . . . Energy Cannon 3 | . . . . 1 9 9 . 3 4 6 3 . 4 6 . . . . 3 5 . 7 7 4 2 Ballistic Gun 2 | . . 8 . . . . . . . . 2 . . 2 9 10 6 9 6 . . . . 2 . Ballistic Cannon 1 | . . . . . . . . . . 1 4 4 . 5 1 . . . . 1 . 2 2 2 2 Special Weapon 1 | . 6 . . 1 . . 5 5 4 3 2 4 4 . . . 4 . . . . . . . . Peak Build Rating 304 | 9 11 17 27 106 108 109 117 115 131 118 105 106 115 139 131 134 143 145 170 174 167 189 228 286 304 Average Rating 117 | 5 8 13 18 93 106 107 108 111 120 112 101 105 105 126 127 128 136 140 163 164 143 183 202 228 281 On Entrance 114 | . 8 9 16 25 106 107 109 109 115 110 95 105 106 115 128 130 131 138 145 143 167 167 183 228 285 Naked Turns . | . . . . . . . . . . . . . . . . . . . . . . . . . . Heaviest Build 273 | 15 30 213 218 273 100 101 99 115 118 102 142 150 150 180 173 170 166 169 175 165 160 188 196 192 133 Greatest Support 270 | 20 40 40 30 118 118 118 118 118 126 106 36 36 36 80 48 48 40 40 40 40 40 85 270 270 188 Greatest Overweight (x) 49 | . 2 21 10 12 . . . . 1 2 3 49 4 6 3 4 4 4 4 4 3 4 9 12 . Average Overweight (x) 2 | . 1 1 7 . . . . . . . 2 10 3 3 3 3 3 3 3 3 3 3 2 . . Largest Inventory Capacity 35 | 8 15 35 35 35 25 20 25 20 20 20 25 25 25 25 25 25 25 25 25 25 25 25 25 25 25 Average Capacity 23 | 7 12 18 33 20 20 20 20 20 20 20 24 25 25 25 25 25 25 25 25 25 25 25 25 25 25 Most Carried 35 | 8 15 23 35 34 20 20 20 20 20 20 25 25 25 25 25 25 25 25 25 25 25 25 25 25 25 Average Carried 22 | 6 11 15 29 19 19 19 19 20 19 19 23 24 24 23 24 24 24 24 24 24 18 24 24 24 22 Final Capacity 35 | 8 15 35 35 20 20 20 20 20 20 20 25 25 25 25 25 25 25 25 25 25 25 25 25 25 25 Final Carried 35 | 8 15 23 35 20 20 20 20 20 20 20 25 25 20 25 24 25 25 25 20 25 25 23 25 25 20 Class Distribution -------------------- 26% | Scavenger-Scrapper 20% | Mutant 11% | Hauler-Mutant 9% | Commander-Gunner 9% | Hacker-Tank 5% | Scavenger-Tank 4% | Hacker-Gunner Dominant Class ---------------- Mutant | -10/Materials Mutant | -10/Subcaves Hauler-Mutant | -9/Scraptown Mutant | -6/Factory Commander-Mutant | -6/Lower Caves Mutant | -6/Lower Caves Mutant | -6/Zion Tank | -5/Proximity Caves Hacker-Tank | -5/Factory Commander-Gunner | -5/Extension Commander-Gunner | -5/Cetus Commander-Gunner | -5/Archives Commander-Gunner | -5/Hub_04(d) Scavenger-Tank | -4/Factory Scavenger-Scrapper | -4/Upper Caves Scavenger-Scrapper | -4/Upper Caves Scavenger-Scrapper | -4/Warlord Scavenger-Scrapper | -3/Proximity Caves Scavenger-Scrapper | -3/Research Scavenger-Scrapper | -3/Armory Scavenger-Scrapper | -3/Lab Scavenger-Scrapper | -2/Research Scavenger-Scrapper | -2/Quarantine Hacker-Tank | -2/Protoforge Hacker-Gunner | -1/Access Resources | -11 -10 -10 -9 -6 -6 -6 -6 -5 -5 -5 -5 -5 -5 -4 -4 -4 -4 -3 -3 -3 -3 -2 -2 -2 -1 ----------- Run | Yrd Mat Sub Scr Fac Low Low Zio Pro Fac Ext Cet Arc Hub Fac Upp Upp War Pro Res Arm Lab Res Qua Frg Acc Matter Collected 20775 | 351 206 625 535 905 147 188 80 168 677 461 212 132 210 1399 464 395 309 206 853 1737 . 1687 1147 6678 1003 Remotely 5307 | . . . . 10 . . . . . . . . . 338 172 . 274 . 186 . . . . 3665 662 Salvage Created 24605 | 102 179 549 . 1998 70 111 . 105 1566 348 289 325 110 2530 265 639 . 101 1490 2510 . 1976 1320 6550 1472 Parts 1063 | 8 7 25 . 77 6 3 . 12 34 17 9 17 3 94 12 15 . 4 68 130 . 83 67 297 75 Haulers Intercepted 1 | . . . . . . . . . 1 . . . . . . . . . . . . . . . . Recyclers Shooed 6 | 1 . . . 1 . . . . 1 . . . . . . 2 . . . . . 1 . . . Parts Field Recycled . | . . . . . . . . . . . . . . . . . . . . . . . . . . Retrieved Matter . | . . . . . . . . . . . . . . . . . . . . . . . . . . Parts Self-Destructed 85 | . . 14 . . 2 11 . 5 . . . . . . 30 9 . 14 . . . . . . . Prevented 10 | . . . . . 4 3 . 3 . . . . . . . . . . . . . . . . . Kills | -11 -10 -10 -9 -6 -6 -6 -6 -5 -5 -5 -5 -5 -5 -4 -4 -4 -4 -3 -3 -3 -3 -2 -2 -2 -1 ------- Run | Yrd Mat Sub Scr Fac Low Low Zio Pro Fac Ext Cet Arc Hub Fac Upp Upp War Pro Res Arm Lab Res Qua Frg Acc Combat Hostiles Destroyed 374 | . 1 14 . 35 1 4 . 5 30 6 3 1 2 36 3 6 . 2 19 36 . 23 15 114 18 Melee 7 | . . . . 4 . . . . . . . . . . . . . . . 2 . . . 1 . Guns 68 | . 1 12 . 9 . . . . . . . . . 7 3 6 . 2 5 . . . . 23 . Cannons 164 | . . . . 7 1 . . . 11 4 2 1 2 19 . . . . 6 21 . 13 6 53 18 AOE 44 | . . . . 5 . 3 . 4 9 . . . . . . . . . . 2 . . . 21 . Classes Destroyed 32 | 1 3 3 . 6 . 1 . . 1 . . . . 1 2 1 . . . 3 . . 1 8 1 Worker 3 | . . . . . . . . . . . . . . . . . . . . . . . . 1 2 Builder 5 | . . . . 1 . . . . 1 . . . . 1 . . . . 1 . . . . 1 . Tunneler 9 | 6 . . . 2 . . . . 1 . . . . . . . . . . . . . . . . Hauler 1 | . . . . . . . . . 1 . . . . . . . . . . . . . . . . Recycler 6 | . 1 . . 3 . . . . 1 . . . . . . . . . . . . . . . 1 Minesweeper 1 | . . . . . . . . . . . . . . . 1 . . . . . . . . . . Mechanic 6 | . . . . . . . . . . . . . . . . . . . . . . . . 4 2 Operator 13 | . . . . 3 . . . . . . . 7 . . . . . . . 2 . 1 . . . Drone 5 | . . . . . . . . . . . . . . . . . . . . . . . . 5 . Watcher 21 | . 3 . . 1 . . . . 1 1 . . . 1 . . . . 3 . . 3 2 2 4 Swarmer 57 | . . 2 . 10 . 3 . 4 10 2 . . . 3 . 1 . 1 . 11 . . . 4 6 Saboteur 3 | . . . . . . . . . . . . . . . . . . . . 1 . . . 2 . Grunt 91 | . 1 . . 12 . . . . 14 1 . . . 18 . 1 . 1 7 8 . 4 . 24 . Brawler 7 | . . . . 1 . . . . . . . . . . . . . . . . . . . 5 1 Duelist 6 | . . . . . . . . . . . . . . . 1 . . . . . . . . 5 . Protector 2 | . . . . . . . . . . . . . . . . . . . . . . . . 2 . Researcher 2 | . . . . . . . . . . . . . . . . . . . . . . . . 2 . Sentry 30 | . . . . 2 . . . 1 4 3 . 1 . 4 . 1 . . . 3 . 1 1 9 . Specialist 7 | . . . . . . . . . . . . . . . . . . . . 2 . . . . 5 Hunter 26 | . . . . 3 1 . . . 2 . . . 1 4 1 . . . 3 2 . 6 . 2 1 Programmer 89 | . . . . 7 . . . . . . . . 1 7 1 2 . . 8 9 . 12 6 32 4 Heavy 1 | . . . . . . . . . . . . . . . . . . . . . . . . . 1 Behemoth 2 | . . . . . . 1 . . . . . . . . . . . . 1 . . . . . . Cetus Guard 3 | . . . . . . . . . . . 3 . . . . . . . . . . . . . . Quarantine Guard 7 | . . . . . . . . . . . . . . . . . . . . . . . 7 . . Hotshot 4 | . . . . . . . . . . . . . . . . . . . . . . . . 4 . Decapitator 10 | . . . . . . . . . . . . . . . . . . . . . . . . 10 . Immortal 5 | . . . . . . . . . . . . . . . . . . . . . . . . 5 . Alpha 7 2 | . . . . . . . . . . . . . . . . . . . . . . . . 2 . Fortress 1 | . . . . . . . . . . . . . . . . . . . . . . . 1 . . V-Series 3 | . . . . . . . . . . . . . . . . . . . . . . . . 3 . Artisan 1 | . . 1 . . . . . . . . . . . . . . . . . . . . . . . Subdweller 12 | . . 12 . . . . . . . . . . . . . . . . . . . . . . . Scrapoid 2 | . . . . . . . . . . . . . . 2 . . . . . . . . . . . Scraphulk 1 | . . . . . . . . . . . . . . . . . . . . 1 . . . . . Packrat 3 | . . . . . . . . . . . . . . . . 3 . . . . . . . . . Mutant 1 | . . . . . . . . . . . . . . . . 1 . . . . . . . . . Best Kill Streak 19 | 2 2 3 . 7 1 3 . 4 6 2 3 2 1 7 1 2 . 1 4 4 . 4 2 14 19 Combat Bots Only 15 | . 1 3 . 5 1 3 . 4 5 2 3 1 1 6 1 2 . 1 4 4 . 4 2 13 15 Max Kills in Single Turn 4 | 1 1 1 . 3 1 2 . 2 4 1 1 1 1 2 1 1 . 1 1 2 . 2 1 3 3 Gunslinging 1 | . . . . . . . . . . . . . . . . . . . . . . . . 1 . Exploded 4 | . . . . 2 . 2 . 2 4 . . . . . . . . . . 2 . . . 3 . Melee 1 | . . . . 1 . . . . . . . . . . . . . . . 1 . . . 1 . Uniques/NPCs Destroyed 1 | . . . . . . . . . . . 1 . . . . . . . . . . . . . . A7 (-5/Cetus) Combat | -11 -10 -10 -9 -6 -6 -6 -6 -5 -5 -5 -5 -5 -5 -4 -4 -4 -4 -3 -3 -3 -3 -2 -2 -2 -1 -------- Run | Yrd Mat Sub Scr Fac Low Low Zio Pro Fac Ext Cet Arc Hub Fac Upp Upp War Pro Res Arm Lab Res Qua Frg Acc Hostile Shots Fired 2584 | . . 67 1 274 4 15 . 10 137 65 . 9 67 408 14 20 . 12 291 169 . 128 54 520 319 Missed 778 | . . 20 . 80 2 8 . 5 41 22 . 1 15 126 3 4 . 5 88 43 . 41 13 138 123 Deflected 10 | . . . . . . . . . . . . . . . . . . . . . . . . . 10 Hits 1806 | . . 47 1 194 2 7 . 5 96 43 . 8 52 282 11 16 . 7 203 126 . 87 41 382 196 Melee 23 | . . . . 1 . . . . . . . . . 1 1 . . . . 1 . . . 17 2 Projectile 1783 | . . 47 1 193 2 7 . 5 96 43 . 8 52 281 10 16 . 7 203 125 . 87 41 365 194 AOE 27 | . . . . . . . . . . . . . . 2 . . . . . . . . . 3 22 Critical Strikes 113 | . . 1 . 9 . . . . 5 5 . . 5 16 1 4 . . 17 5 . 3 5 28 9 Actively Blocked 43 | . . . . . . . . . . . . . . 2 1 4 . . 1 3 . . 2 21 9 Part Disruptions 11 | . . . . 1 . . . . . . . . . . 1 . . . . . . 2 . 7 . Damage Taken 34107 | . 30 909 34 2795 52 61 . 67 1636 892 27 225 1059 4015 195 203 22 79 3077 2758 . 1850 1001 8909 4211 Core 2750 | . . 238 . 192 . . . . 105 120 . . 49 338 28 24 . 15 263 151 . 163 25 750 289 Absorbed by Shields 5366 | . . . . 533 20 24 . 25 308 112 25 . 78 1439 126 216 22 80 1017 . . . 364 768 209 Reduced by Siege Mode 158 | . . . . . . . . . . . . . . 30 . . . . 5 . . 7 27 89 . Redirected to Shielding 220 | . . . . . . . . . 11 30 . . . 79 . . . . . . . . . 100 . Ignored by Resistances 856 | . . . . . . . . . . . . . . . 34 . . . . . . . . 612 210 Regen/Repaired (Parts) 5608 | . . . . 45 . . . . . 20 . 7 . 1109 375 23 31 . 37 823 . 497 346 1537 758 Core Remaining (%) 61 | 100 . . 4 . . . . 77 . . . . 72 . . . . 64 . . 68 . . 33 74 Volleys Fired 1672 | 30 24 54 . 108 7 11 . 26 93 55 35 39 29 171 20 30 16 17 135 153 . 130 96 336 57 Largest 3 | 2 2 2 . 3 1 2 . 2 2 2 2 1 2 3 3 3 1 3 3 2 . 1 1 3 2 Hottest 250 | 80 100 100 . 180 85 160 . 90 90 132 116 100 81 223 170 170 7 205 248 154 . 130 130 200 250 Shots Fired 2120 | 32 30 104 . 145 7 14 . 28 116 66 37 39 35 272 49 76 16 23 160 151 . 130 98 426 66 Gun 644 | 32 12 104 . 54 . . . . . . 19 30 . 52 43 76 . 21 54 . . . . 147 . Cannon 1262 | . . . . 49 7 12 . 24 67 49 15 4 28 210 . . . 2 90 150 . 118 98 273 66 Launcher 18 | . . . . 4 . 2 . 2 3 . . . . . . . . . . 1 . . . 6 . Special 196 | . 18 . . 38 . . . 2 46 17 3 5 7 10 6 . 16 . 16 . . 12 . . . Kinetic 575 | 28 . 39 . 3 . . . . . 16 26 4 . 90 29 47 . 4 28 6 . . 1 223 31 Thermal 821 | . 18 61 . 61 2 8 . 24 58 29 . 30 25 92 14 29 . 19 89 45 . 68 53 61 35 Explosive 18 | . . . . 4 . 2 . 2 3 . . . . . . . . . . 1 . . . 6 . Electromagnetic 526 | 4 12 4 . 39 5 4 . . 9 4 8 . 3 80 . . . . 27 99 . 50 44 134 . Impact 118 | . . . . 38 . . . 2 46 17 3 5 7 . . . . . . . . . . . . Entropic 2 | . . . . . . . . . . . . . . . . . . . . . . . . 2 . Robot Hit Streak 40 | 4 4 16 . 10 7 9 . 11 23 19 20 15 20 40 21 13 22 25 12 7 . 11 15 27 10 Robot Miss Streak 5 | 3 3 3 . 3 1 . . 1 3 1 2 2 1 4 5 2 . 1 4 5 . 5 3 5 5 Penetration Max 3 | . . . . . . . . . . 1 1 1 . 1 . . . . 1 . . . . 3 2 Secondary Targets 9 | . . 1 . 2 . . . . . . . . . . . . . . . . . . . 6 . Max Gunslinging Chain 1 | . . 1 . 1 . . . . . . . . . . . . . . . . . . . 1 . Capacitor 587 | . . . . . . . . . . . . . . . . . . . 78 141 . 115 97 150 6 Shots Hit Robots 1319 | 20 11 72 2 113 4 6 . 3 62 50 33 32 12 166 32 48 15 5 98 96 . 67 47 277 48 Core Hits 616 | 6 5 24 . 49 1 3 . 6 31 6 12 11 1 64 12 19 . 3 28 41 . 23 14 214 43 Critical Kills 75 | . . . . 1 . . . . 1 4 2 2 . 7 . 2 . . 5 . . 2 . 36 13 Critical Parts Destroyed 109 | . . 1 . 5 . . . . 5 12 1 . 1 10 1 3 . . 4 . . . . 47 19 Critical Strikes 229 | . . 1 . 6 . 1 . . 6 16 5 7 1 23 1 7 . 1 16 2 . 2 . 98 36 Burn 17 | . . . . . . . . . . . . 5 . 3 . 2 . 1 6 . . . . . . Meltdown 11 | . . . . . . . . . 1 1 . . . . . . . . 3 . . 2 . 4 . Destroy 166 | . . . . 1 . . . . . 10 4 2 . 17 1 5 . . 6 . . . . 88 32 Blast 10 | . . . . . . . . . . . . . . 1 . . . . . 1 . . . 4 4 Corrupt 7 | . . . . . . 1 . . . . . . . 2 . . . . 1 1 . . . 2 . Smash 18 | . . 1 . 5 . . . . 5 5 1 . 1 . . . . . . . . . . . . Melee Attacks 189 | . 16 46 2 56 4 6 1 5 1 . . . . . . . . . . 39 3 3 2 . 5 Kinetic 2 | . . . . . . . . . . . . . . . . . . . . . . . 2 . . Impact 82 | . 16 46 . . . . . . . . . . . . . . . . . 14 3 3 . . . Slashing 78 | . . . . 56 4 6 1 5 1 . . . . . . . . . . . . . . . 5 Piercing 25 | . . . . . . . . . . . . . . . . . . . . 25 . . . . . Sneak Attacks 18 | . 3 . 2 7 . . . . 1 . . . . . . . . . . 4 . . . . 1 Combat Hostiles . | . . . . . . . . . . . . . . . . . . . . . . . . . . Follow-up Attacks . | . . . . . . . . . . . . . . . . . . . . . . . . . . Damage Inflicted 62406 | 256 271 1398 . 6072 133 502 . 453 4722 1868 851 1101 686 5301 735 1302 . 86 3544 4652 . 3523 2034 19426 3490 Guns 12394 | 256 137 1246 . 828 . . . . . . 472 658 . 1110 735 1302 . 86 1188 . . . . 4376 . Cannons 32164 | . . . . 964 133 99 . 33 885 937 214 92 221 3989 . . . . 2356 3867 . 3329 2003 9664 3378 Explosions 8237 | . . . . 848 . 403 . 279 769 . . . . 162 . . . . . 211 . 194 . 5371 . Melee 2013 | . 134 152 . 917 . . . . 93 . . . . . . . . . . 574 . . 31 . 112 Ramming 143 | . . . . 13 . . . . 38 37 . . . 40 . . . . . . . . . 15 . Kinetic 13718 | 213 . 556 . . . . . . . 262 586 92 . 1694 462 841 . . 567 53 . . 31 6774 1587 Thermal 20835 | . . 675 . 967 . 96 . 33 809 537 . 658 113 1339 273 461 . 86 2106 1228 . 2007 882 6774 1791 Explosive 5207 | . . . . 815 . 336 . 279 601 . . . . . . . . . . 211 . . . 2965 . Electromagnetic 13009 | 43 137 15 . 858 133 70 . . 244 138 100 . 108 2228 . . . . 871 2586 . 1516 1121 2841 . Impact 7806 | . 134 152 . 2502 . . . 141 2937 894 165 351 465 . . . . . . 65 . . . . . Slashing 1122 | . . . . 917 . . . . 93 . . . . . . . . . . . . . . . 112 Piercing 509 | . . . . . . . . . . . . . . . . . . . . 509 . . . . . Entropic 57 | . . . . . . . . . . . . . . . . . . . . . . . . 57 . Highest Corruption 55 | . 2 2 . 7 3 3 3 . . . . . 25 5 3 3 5 . 17 26 26 6 12 55 4 Average Corruption 11 | . 2 2 . 2 3 3 3 . . . . . 1 2 3 2 5 . 8 21 26 4 10 32 3 Corruption Purged 15 | . . . . 4 . . . . . . . . . 5 . 3 . . 3 . . . . . . Corruption Blocked . | . . . . . . . . . . . . . . . . . . . . . . . . . . Effects 738 | . 12 65 . 30 13 26 1 . . . . . 3 16 25 7 . . 23 128 17 23 86 254 9 Message Errors 173 | . 2 8 . 3 4 8 . . . . . . 1 3 9 2 . . 6 30 6 6 27 56 2 Matter Fused 170 | . 3 20 . 5 5 4 . . . . . . 1 4 4 1 . . 5 35 4 4 19 52 4 Heat Flow Errors 81 | . 2 12 . 3 . 6 . . . . . . 1 3 2 . . . . 14 . 2 14 20 2 Energy Discharges 87 | . 2 7 . 6 1 1 . . . . . . . 4 6 . . . 1 16 3 2 8 30 . Parts Rejected 7 | . . . . 2 . . . . . . . . . . 1 . . . . . . . . 4 . Parts Fused 10 | . . 2 . . . 1 . . . . . . . . 1 . . . . . . 1 1 4 . Data Loss (minor) 89 | . 2 3 . 4 2 4 1 . . . . . . 1 1 1 . . 3 14 1 5 12 34 1 Data Loss (major) 27 | . 1 1 . 3 1 . . . . . . . . . . . . . 4 . 3 1 2 11 . Misfires 36 | . . 8 . 2 . 1 . . . . . . . 1 1 3 . . 1 4 . 1 2 12 . Alerts 14 | . . 2 . 2 . 1 . . . . . . . . . . . . . 5 . . 1 3 . Misdirections 7 | . . . . . . . . . . . . . . . . . . . 1 2 . . . 4 . Weapon Failures 37 | . . 2 . . . . . . . . . . . . . . . . 2 8 . 1 . 24 . Overload Shots . | . . . . . . . . . . . . . . . . . . . . . . . . . . Overflow Damage 6493 | . 64 64 . 1222 . 17 . 61 1067 210 32 39 151 13 . . . . 54 237 . 158 194 2302 608 Projectiles 5328 | . . . . 993 . 4 . 44 954 210 32 39 151 13 . . . . 54 200 . 158 194 1746 536 Explosions 668 | . . . . 32 . 13 . 17 50 . . . . . . . . . . . . . . 556 . Melee 497 | . 64 64 . 197 . . . . 63 . . . . . . . . . . 37 . . . . 72 Knockbacks 89 | . 2 2 . 17 . . . . 12 1 . . 1 14 . . . . 1 . . . . 30 9 Impact 32 | . 2 2 . 16 . . . . 10 1 . . 1 . . . . . . . . . . . . Kinetic 48 | . . . . . . . . . . . . . . 12 . . . . 1 . . . . 27 8 Secondary 9 | . . . . 1 . . . . 2 . . . . 2 . . . . . . . . . 3 1 Self-Inflicted Damage 672 | . . . . 167 . . . . 68 . . . . 20 . . . . . . . . . 417 . Shots 22 | . . . . 5 . . . . 1 . . . . . . . . . . . . . . 16 . Rammed 3 | . . . . . . . . . . . . . . 2 . . . . . . . . . 1 . Targets Rammed 9 | . . . . 1 . . . . 3 2 . . . 2 . . . . . . . . . 1 . Kicked 6 | . . . . 1 . . . . 3 2 . . . . . . . . . . . . . . . Crushed . | . . . . . . . . . . . . . . . . . . . . . . . . . . Highest Temperature 431 | 36 141 195 . 431 200 242 . 229 200 40 . 200 . 343 223 359 . 70 308 376 . 364 312 224 187 Average Temperature 87 | 20 27 88 . 101 76 101 . 82 52 20 . 80 . 89 77 118 . 27 115 91 . 90 98 72 97 Received Heat Transfer 3428 | . . 198 12 596 . . . 6 313 157 . 36 132 557 16 26 . 4 181 168 . 54 18 684 270 Effects 10 | . . . . 3 . 1 . . . . . . . 4 . 1 . . 1 . . . . . . Shutdowns 1 | . . . . 1 . . . . . . . . . . . . . . . . . . . . . Energy Bleed 4 | . . . . 2 . 1 . . . . . . . . . 1 . . . . . . . . . Interference 5 | . . . . . . . . . . . . . . 4 . . . . 1 . . . . . . Siege Activations 20 | . . . . . . . . . . . . . . 4 . . . . 1 2 . 4 3 6 . Total Turns 177 | . . . . . . . . . . . . . . 62 . . . . 5 9 . 29 28 44 . Longest Duration 25 | . . . . . . . . . . . . . . 25 . . . . 5 7 . 22 13 17 . Martial Activations . | . . . . . . . . . . . . . . . . . . . . . . . . . . Shielding Activations . | . . . . . . . . . . . . . . . . . . . . . . . . . . Robots Disrupted . | . . . . . . . . . . . . . . . . . . . . . . . . . . Combat Hostiles . | . . . . . . . . . . . . . . . . . . . . . . . . . . Robots Corrupted 82 | . 1 2 . 10 . . . 1 9 1 1 . . 9 . . . . 5 10 . 10 9 14 . Combat Hostiles 77 | . . 2 . 10 . . . 1 9 1 1 . . 9 . . . . 5 10 . 8 8 13 . Parts Fried 155 | 2 2 4 . 21 1 1 . . 15 1 1 . 3 11 . . . . 11 21 . 18 20 23 . Impact Corruptions 62 | . 1 2 . 26 . . . 1 22 4 1 1 3 . . . . . . 1 . . . . . Robots Melted 15 | . . . . . . 1 . . 1 1 . 1 . 1 . . . . 4 . . 2 . 4 . Combat Hostiles 12 | . . . . . . 1 . . 1 1 . . . 1 . . . . 3 . . 2 . 3 . Parts Melted 74 | . . 5 . 1 . 3 . . 3 2 . 6 . 6 2 3 . 1 10 3 . 12 6 9 2 Heat Transferred 20136 | . . 825 . 1123 . 87 . 50 1150 800 . 1700 150 1972 450 1000 . 250 2809 500 . 1750 750 3720 1050 Parts Sabotaged 7 | . . . . . . . . . . . . . . . . . . . . 1 . . . 2 4 Parts Stolen . | . . . . . . . . . . . . . . . . . . . . . . . . . . Parts Stripped 18 | . . . . . . . . . . . . . . . . . . . . . . . 18 . . Power Chain Reactions 3 | . . . . . . 1 . . 1 . . . . . . . . . . . . 1 . . . Alert | -11 -10 -10 -9 -6 -6 -6 -6 -5 -5 -5 -5 -5 -5 -4 -4 -4 -4 -3 -3 -3 -3 -2 -2 -2 -1 ------- Run | Yrd Mat Sub Scr Fac Low Low Zio Pro Fac Ext Cet Arc Hub Fac Upp Upp War Pro Res Arm Lab Res Qua Frg Acc Maximum Alert Level 5 | . . . . 2 . . . . 3 3 2 1 2 3 . . . . 2 3 . 2 1 5 5 Low Security (%) 51 | 100 100 . . 56 . . . . 45 16 . 89 11 61 . . . . 76 16 . 79 88 17 . Level 1 20 | . . . . 29 . . . . 34 39 46 10 25 13 . . . . 13 46 . 20 11 14 . Level 2 14 | . . . . 14 . . . . 8 34 53 . 63 17 . . . . 9 35 . . . 13 . Level 3 4 | . . . . . . . . . 11 9 . . . 7 . . . . . 1 . . . 14 . Level 4 2 | . . . . . . . . . . . . . . . . . . . . . . . . 13 . Level 5 3 | . . . . . . . . . . . . . . . . . . . . . . . . 16 54 High Security 2 | . . . . . . . . . . . . . . . . . . . . . . . . 10 45 Max Security . | . . . . . . . . . . . . . . . . . . . . . . . . . . Peak Influence 2754 | 10 45 . . 591 . . . . 1043 849 499 263 588 827 . . . . 495 705 . 415 302 2754 2122 Initial 1652 | . . . . . . . . . . 511 473 124 . 110 . . . . . 215 . . 233 31 1652 Average 374 | 1 4 . . 190 . . . . 284 405 408 43 390 251 . . . . 139 350 . 121 83 1018 1945 Influence Increases 18364 | 30 150 55 . 1276 63 242 . 110 1764 1701 155 276 1087 1887 308 113 . 299 1066 1543 . 995 841 3693 710 Destroy 0b10 Robot/C 9560 | . 20 40 . 720 40 180 . 100 860 800 80 80 340 940 220 100 . 180 620 900 . 500 300 2180 360 Destroy 0b10 Robot/NC 470 | 30 20 . . 50 . . . . 35 55 5 40 10 15 5 . . . 40 10 . 25 10 75 45 Destroy Leader 1702 | . 6 . . 182 10 30 . 10 164 104 . . 94 182 30 10 . 40 118 180 . 116 94 264 68 Allied During Kill 1787 | . . . . 10 13 32 . . 153 530 64 120 436 121 53 3 . 79 70 97 . 6 . . . Successful Hack 709 | . 22 . . 65 . . . . 36 25 . . 18 67 . . . . 98 23 . 75 197 47 36 Select Force Hacks 60 | . 60 . . . . . . . . . . . . . . . . . . . . . . . . Disable Machine 1230 | . . . . 120 . . . . 60 30 . 30 30 150 . . . . 30 165 . 105 120 375 15 Anti-Garrison Action 150 | . . . . . . . . . . . . . . . . . . . . . . . . 150 . Destroy Structure 2036 | . 22 . . 84 . . . . 306 112 6 6 114 262 . . . . 90 138 . 168 90 497 141 Partial Spotted 75 | . . . . . . . . . 15 . . . . 15 . . . . . 15 . . 30 . . Lose Combat Pursuer 585 | . . 15 . 45 . . . . 135 45 . . 45 135 . . . . . 15 . . . 105 45 Influence Decreases 16242 | 30 124 81 . 692 608 281 . 110 721 1898 691 586 860 1289 816 430 . 299 655 1464 490 580 1200 995 1342 Entered New Map 3809 | . . 14 . . 217 8 . . . 532 373 186 . 117 306 61 . . . 196 490 . 182 25 1102 Time Decay 8051 | 30 124 67 . 522 391 213 . 110 521 556 198 360 330 695 470 319 . 279 445 658 . 431 562 620 150 Lost Part 520 | . . . . 20 . . . . 10 10 . . 20 80 . . . . 60 10 . 10 10 200 90 Lost Ally 942 | . . . . . . 60 . . 40 200 120 40 60 97 40 50 . 20 150 . . 55 10 . . Purge Threat 2920 | . . . . 150 . . . . 150 600 . . 450 300 . . . . . 600 . 84 436 150 . Squads Dispatched 140 | . 3 . . 13 . . . . 14 7 . . 5 17 . . . . 8 14 . 5 2 39 13 Investigation 38 | . 3 . . 6 . . . . 8 3 . . 1 6 . . . . 2 5 . 2 . 2 . Extermination 41 | . . . . 5 . . . . 3 . . . 2 6 . . . . 4 6 . 3 2 9 1 Reinforcement 20 | . . . . 2 . . . . 2 3 . . 1 3 . . . . 1 3 . . . 3 2 Assault 39 | . . . . . . . . . . 1 . . 1 2 . . . . 1 . . . . 24 10 Garrison 2 | . . . . . . . . . 1 . . . . . . . . . . . . . . 1 . Intercept . | . . . . . . . . . . . . . . . . . . . . . . . . . . Searches Triggered . | . . . . . . . . . . . . . . . . . . . . . . . . . . Construction Impeded 6 | . . . . 1 . . . . . 2 . . . 1 . . . . 1 . . . . . 1 Haulers Reinforced 2 | . . . . . . . . . 1 . . . . 1 . . . . . . . . . . . Active Scanning Responses . | . . . . . . . . . . . . . . . . . . . . . . . . . . Cargo Convoy Interrupts 1 | . . . . . . . . . 1 . . . . . . . . . . . . . . . . Stealth | -11 -10 -10 -9 -6 -6 -6 -6 -5 -5 -5 -5 -5 -5 -4 -4 -4 -4 -3 -3 -3 -3 -2 -2 -2 -1 --------- Run | Yrd Mat Sub Scr Fac Low Low Zio Pro Fac Ext Cet Arc Hub Fac Upp Upp War Pro Res Arm Lab Res Qua Frg Acc Distress Signals 14 | . 1 . . 2 . . . . . . 2 . 2 1 . . . . 1 . . 3 1 . 1 Communications Jammed 29 | . . . . . . . . . . . . . . . . . . . 27 2 . . . . . Distress Signals 29 | . . . . . . . . . . . . . . . . . . . 27 2 . . . . . Times Spotted 702 | . 4 14 4 46 2 8 . 5 54 34 5 21 33 78 9 8 5 6 46 52 . 30 20 125 93 Peak Tracking Total 23 | . 2 3 4 6 2 3 . 4 6 5 5 2 11 8 4 3 1 3 8 5 . 4 2 9 23 Tactical Retreats 42 | . . 1 . 2 . . . . 8 3 . . 2 15 . 1 . . . 1 . . . 7 2 Traps | -11 -10 -10 -9 -6 -6 -6 -6 -5 -5 -5 -5 -5 -5 -4 -4 -4 -4 -3 -3 -3 -3 -2 -2 -2 -1 ------- Run | Yrd Mat Sub Scr Fac Low Low Zio Pro Fac Ext Cet Arc Hub Fac Upp Upp War Pro Res Arm Lab Res Qua Frg Acc Traps Triggered 25 | . 3 . . 5 . . . . 2 . . . . . . . . . . 3 . . . 12 . Indirectly . | . . . . . . . . . . . . . . . . . . . . . . . . . . Trap Hack Attempts . | . . . . . . . . . . . . . . . . . . . . . . . . . . Triggered . | . . . . . . . . . . . . . . . . . . . . . . . . . . Disarmed . | . . . . . . . . . . . . . . . . . . . . . . . . . . Reprogrammed . | . . . . . . . . . . . . . . . . . . . . . . . . . . Reused . | . . . . . . . . . . . . . . . . . . . . . . . . . . Traps Extracted 1 | . . . . . . . . . . . . . . . . 1 . . . . . . . . . Installed . | . . . . . . . . . . . . . . . . . . . . . . . . . . Triggered . | . . . . . . . . . . . . . . . . . . . . . . . . . . Most Traps Carried 6 | . . . . . . . . . . . . . . . 5 6 6 6 6 6 6 6 6 6 6 Machines | -11 -10 -10 -9 -6 -6 -6 -6 -5 -5 -5 -5 -5 -5 -4 -4 -4 -4 -3 -3 -3 -3 -2 -2 -2 -1 ---------- Run | Yrd Mat Sub Scr Fac Low Low Zio Pro Fac Ext Cet Arc Hub Fac Upp Upp War Pro Res Arm Lab Res Qua Frg Acc Machines Disabled 101 | . 1 1 . 8 . . . 1 4 5 . 2 2 10 . 1 1 . 2 11 1 7 8 35 1 Max in Single Turn 4 | . 1 1 . 1 . . . 1 1 1 . 1 . 4 . 1 1 . 1 1 1 1 1 2 1 Garrison Access 7 | . . . . . . . . . 1 . . . 1 . . . . . 2 . . 1 1 1 . Network Hub 2 | . . . . . . . . . . . . . 2 . . . . . . . . . . . . Machines Repaired . | . . . . . . . . . . . . . . . . . . . . . . . . . . Machines Dismantled 1 | . . . . . . . . . . . . . . . . . 1 . . . . . . . . Machines Sabotaged . | . . . . . . . . . . . . . . . . . . . . . . . . . . Overloaded Fab Kills . | . . . . . . . . . . . . . . . . . . . . . . . . . . Hacking | -11 -10 -10 -9 -6 -6 -6 -6 -5 -5 -5 -5 -5 -5 -4 -4 -4 -4 -3 -3 -3 -3 -2 -2 -2 -1 --------- Run | Yrd Mat Sub Scr Fac Low Low Zio Pro Fac Ext Cet Arc Hub Fac Upp Upp War Pro Res Arm Lab Res Qua Frg Acc Machines Accessed 121 | . 8 3 4 20 1 1 . 1 13 5 . . 2 10 1 2 2 . 9 10 . 9 10 9 1 Terminals 41 | . 6 . . 9 . . . 1 . 4 . . 1 1 . . . . . 2 . 2 8 6 1 Fabricators 12 | . . . . 2 . . . . 1 . . . . 2 . . . . 3 4 . . . . . Repair Stations 11 | . . . . 2 . . . . . . . . . 2 . . . . 1 2 . 3 1 . . Recycling Units 25 | . 2 . . 5 . . . . 7 1 . . . 4 . . . . 2 2 . 2 . . . Scanalyzers 8 | . . . . 2 . . . . 2 . . . . . . . . . 1 . . 1 . 2 . Garrison Access 10 | . . . . . . . . . 3 . . . 1 1 . . . . 2 . . 1 1 1 . Total Hacks 467 | . 26 6 24 48 1 1 . 5 30 27 . . 13 48 1 6 2 . 47 40 . 45 54 39 4 Successful 273 | . 15 6 24 27 1 1 . 5 18 7 . . 7 30 1 6 2 . 26 19 . 24 32 20 2 Failed 194 | . 11 . . 21 . . . . 12 20 . . 6 18 . . . . 21 21 . 21 22 19 2 Catastrophic 38 | . 1 . . 4 . . . . 1 2 . . 1 2 . . . . 2 8 . 4 8 5 . Database Lockouts . | . . . . . . . . . . . . . . . . . . . . . . . . . . Manual 201 | . 17 . . 26 . . . . 12 8 1 . 11 26 . . . . 20 23 . 9 24 22 2 Terminals 220 | . 24 . . 23 . . . 5 5 24 . . 12 21 . . . . 9 7 . 14 44 28 4 Fabricators 50 | . . . . 3 . . . . 1 . . . . 9 . . . . 14 23 . . . . . Repair Stations 48 | . . . . 6 . . . . . . . . . 8 . . . . 4 8 . 15 7 . . Recycling Units 38 | . 2 . . 9 . . . . 9 3 . . . 8 . . . . 2 2 . 3 . . . Scanalyzers 47 | . . . . 7 . . . . 9 . . . . . . . . . 13 . . 9 . 9 . Garrison Access 23 | . . . . . . . . . 6 . . . 1 2 . . . . 5 . . 4 3 2 . Terminal Hacks 105 | . 4 6 24 4 1 1 . 5 1 6 . . 4 5 1 6 2 . . 1 . 3 15 15 1 Record 44 | . . 4 24 . 1 . . 5 . . . . . . . 5 . . . . . . . 5 . Part Schematic 1 | . . . . . . . . . . . . . . 1 . . . . . . . . . . . Robot Schematic 1 | . . . . . . . . . . 1 . . . . . . . . . . . . . . . Robot Analysis 2 | . . . . . . . . . . . . . . . . . . . . . . . 2 . . Prototype ID Bank 11 | . 2 . . . . . . . 1 . . . . 3 . . . . . 1 . . 2 2 . Open Door 10 | . . 1 . . . 1 . . . 4 . . . . 1 1 2 . . . . . . . . Branch Access Points 2 | . . . . 1 . . . . . . . . . . . . . . . . . 1 . . . Machine Index 2 | . . . . . . . . . . . . . . . . . . . . . . 1 1 . . Terminal Index 1 | . . . . . . . . . . . . . . . . . . . . . . . . 1 . Scanalyzer Index 1 | . . . . . . . . . . . . . . . . . . . . . . . . 1 . Alert Level 6 | . . . . 1 . . . . . 1 . . 1 1 . . . . . . . . 1 1 . Unreport Threat 10 | . . . . 1 . . . . . . . . 2 . . . . . . . . 1 5 1 . Locate Traps 2 | . . . . 1 . . . . . . . . . . . . . . . . . . 1 . . Recall Assault 1 | . . . . . . . . . . . . . 1 . . . . . . . . . . . . Registered Components 1 | . . . . . . . . . . . . . . . . . . . . . . . 1 . . Zone Layout 8 | . 2 . . . . . . . . . . . . . . . . . . . . . 2 3 1 Proto ID Catalog 2 | . . 1 . . . . . . . . . . . . . . . . . . . . . 1 . Fabricator Hacks 13 | . . . . . . . . . . . . . . 3 . . . . 3 7 . . . . . Network Status 3 | . . . . . . . . . . . . . . 1 . . . . 1 1 . . . . . Load Schematic 5 | . . . . . . . . . . . . . . 1 . . . . . 4 . . . . . Build 5 | . . . . . . . . . . . . . . 1 . . . . 2 2 . . . . . Repair Station Hacks 22 | . . . . 3 . . . . . . . . . 6 . . . . 1 3 . 5 4 . . Scan Component 13 | . . . . 2 . . . . . . . . . 3 . . . . 1 1 . 3 3 . . Repair 8 | . . . . 1 . . . . . . . . . 3 . . . . . 1 . 2 1 . . Refit 1 | . . . . . . . . . . . . . . . . . . . . 1 . . . . . Recycling Unit Hacks 2 | . . . . 1 . . . . 1 . . . . . . . . . . . . . . . . Retrieve Components 2 | . . . . 1 . . . . 1 . . . . . . . . . . . . . . . . Scanalyzer 27 | . . . . 5 . . . . 5 . . . . . . . . . 8 . . 9 . . . Insert Component 14 | . . . . 4 . . . . 3 . . . . . . . . . 3 . . 4 . . . Analyze 13 | . . . . 1 . . . . 2 . . . . . . . . . 5 . . 5 . . . Garrison Access Hacks 6 | . . . . . . . . . 1 . . . 1 . . . . . 2 . . 1 1 . . Seal Access 6 | . . . . . . . . . 1 . . . 1 . . . . . 2 . . 1 1 . . Unauthorized Hacks 98 | . 11 . . 14 . . . . 10 1 . . 2 16 . . . . 12 8 . 6 12 5 1 Terminals 59 | . 9 . . 7 . . . . 3 1 . . 2 7 . . . . 6 2 . 4 12 5 1 Track 4 | . . . . . . . . . . . . . . . . . . . . . . . 3 1 . Assimilate 8 | . 1 . . 2 . . . . . . . . 1 . . . . . . . . 1 1 2 . Botnet 8 | . 2 . . 1 . . . . . . . . . . . . . . . 1 . 1 1 1 1 Operators 7 | . 1 . . 1 . . . . . 1 . . . . . . . . 1 . . 1 1 1 . Skim 32 | . 5 . . 3 . . . . 3 . . . 1 7 . . . . 5 1 . 1 6 . . Fabricators 12 | . . . . 1 . . . . . . . . . 4 . . . . 4 3 . . . . . Report 1 | . . . . . . . . . . . . . . 1 . . . . . . . . . . . Prioritize 2 | . . . . . . . . . . . . . . 1 . . . . 1 . . . . . . Liberate 4 | . . . . . . . . . . . . . . 1 . . . . 2 1 . . . . . Haulers 3 | . . . . 1 . . . . . . . . . 1 . . . . 1 . . . . . . Recompile 2 | . . . . . . . . . . . . . . . . . . . . 2 . . . . . Repair Stations 3 | . . . . 1 . . . . . . . . . 1 . . . . . 1 . . . . . Patch 3 | . . . . 1 . . . . . . . . . 1 . . . . . 1 . . . . . Recycling Units 24 | . 2 . . 5 . . . . 7 . . . . 4 . . . . 2 2 . 2 . . . Tunnel 2 | . 2 . . . . . . . . . . . . . . . . . . . . . . . . Fedlink 13 | . . . . 4 . . . . 5 . . . . 2 . . . . 1 . . 1 . . . Scrapoids 5 | . . . . 1 . . . . 1 . . . . 2 . . . . . 1 . . . . . Scraphulk 4 | . . . . . . . . . 1 . . . . . . . . . 1 1 . 1 . . . Scanalyzers . | . . . . . . . . . . . . . . . . . . . . . . . . . . Garrison Access . | . . . . . . . . . . . . . . . . . . . . . . . . . . Data Cores Recovered 1 | . . . . . . . . . . . . . . . . . . . . 1 . . . . . Used . | . . . . . . . . . . . . . . . . . . . . . . . . . . Hacking Detections 72 | . 6 . . 14 . . . 1 5 4 . . 1 6 . . . . 5 8 . 6 8 7 1 Full Trace Events 7 | . 1 . . . . . . . . 2 . . 1 1 . . . . . . . . . 2 . Feedback Events . | . . . . . . . . . . . . . . . . . . . . . . . . . . Feedback Blocked . | . . . . . . . . . . . . . . . . . . . . . . . . . . Robot Schematics Acquired 3 | . . . . . . . 2 . . 1 . . . . . . . . . . . . . . . Robots Built 6 | . . . . . . . . . . . . . . 1 . . . . 3 2 . . . . . Authchips 2 | . . . . . . . . . . . . . . . . . . . . 2 . . . . . Time 276 | . . . . . . . . . . . . . . 58 . . . . 102 116 . . . . . Total Robot Build Rating 33 | . . . . . . . . . . . . . . 3 . . . . 24 6 . . . . . Part Schematics Acquired 25 | . . . . 1 . . 15 . 2 . . . . 1 . . . . 3 . . 3 . . . Parts Built 1 | . . . . . . . . . . . . . . . . . . . 1 . . . . . . Authchips . | . . . . . . . . . . . . . . . . . . . . . . . . . . Time 74 | . . . . . . . . . . . . . . . . . . . 74 . . . . . . Total Part Build Rating 9 | . . . . . . . . . . . . . . . . . . . 9 . . . . . . Parts Repaired 8 | . . . . 1 . . . . . . . . . 3 . . . . . 1 . 2 1 . . Time 518 | . . . . 39 . . . . . . . . . 296 . . . . . 56 . 105 22 . . Parts Recycled . | . . . . . . . . . . . . . . . . . . . . . . . . . . Recycled Matter . | . . . . . . . . . . . . . . . . . . . . . . . . . . Retrieved Matter . | . . . . . . . . . . . . . . . . . . . . . . . . . . Retrieved Components 3 | . . . . 2 . . . . 1 . . . . . . . . . . . . . . . . Parts Scanalyzed 11 | . . . . 2 . . . . 3 . . . . . . . . . 3 . . 3 . . . Part Schematics Acquired 9 | . . . . 1 . . . . 2 . . . . . . . . . 3 . . 3 . . . Parts Damaged 2 | . . . . 1 . . . . . . . . . . . . . . . . . 1 . . . Bothacking | -11 -10 -10 -9 -6 -6 -6 -6 -5 -5 -5 -5 -5 -5 -4 -4 -4 -4 -3 -3 -3 -3 -2 -2 -2 -1 ------------ Run | Yrd Mat Sub Scr Fac Low Low Zio Pro Fac Ext Cet Arc Hub Fac Upp Upp War Pro Res Arm Lab Res Qua Frg Acc Used RIF Installer . | . . . . . . . . . . . . . . . . . . . . . . . . . . Robots Hacked 12 | . . . 2 . . . . . . . . . . 2 1 . 2 . 2 . . 3 . . . Non-combat 2 | . . . . . . . . . . . . . . . . . 1 . 1 . . . . . . Combat 4 | . . . 2 . . . . . . . . . . . . . 1 . . . . 1 . . . Robot Hacks Applied 6 | . . . 2 . . . . . . . . . . . . . 2 . 1 . . 1 . . . parse_system 5 | . . . 2 . . . . . . . . . . . . . 2 . . . . 1 . . . find_recycling 1 | . . . . . . . . . . . . . . . . . . . 1 . . . . . . Manual 6 | . . . . . . . . . . . . . . 2 1 . . . 1 . . 2 . . . Relay Couplers Released 6 | . . . . . . . . . 1 . . . 2 . . . . . . . . . 2 1 . Machine Destruction 6 | . . . . . . . . . 1 . . . 2 . . . . . . . . . 2 1 . Fabnet Peak Effective % . | . . . . . . . . . . . . . . . . . . . . . . . . . . Robots Rewired 16 | . . . . . . . . . . 11 . . . . . . 5 . . . . . . . . Allies Hacked 7 | . . . . . . . . . . 2 . . . . 1 . . . 2 2 . . . . . Hacks Repelled 1 | . . . . . . . . . . 1 . . . . . . . . . . . . . . . Allies | -11 -10 -10 -9 -6 -6 -6 -6 -5 -5 -5 -5 -5 -5 -4 -4 -4 -4 -3 -3 -3 -3 -2 -2 -2 -1 -------- Run | Yrd Mat Sub Scr Fac Low Low Zio Pro Fac Ext Cet Arc Hub Fac Upp Upp War Pro Res Arm Lab Res Qua Frg Acc Total Allies 69 | . . . . 5 . . . . 6 19 5 . . 15 . . 5 . 4 8 . 1 1 . . Largest Group 15 | . . . . 5 5 4 . . 5 15 11 9 7 5 5 3 5 5 4 5 2 3 1 . . Highest-Rated Group 695 | . . . . 140 140 112 . . 238 651 695 575 519 241 211 117 296 296 246 326 128 267 45 . . Highest-Rated Ally 159 | . . . . 28 28 28 . . 123 159 159 96 96 50 47 47 68 68 139 139 64 139 45 . . Total Orders 180 | . . . . . . 4 . 2 19 25 4 2 15 28 9 2 14 7 12 32 1 3 . . 1 STAY 28 | . . . . . . . . . . 4 3 1 3 3 1 . 9 1 . 2 1 . . . . FOLLOW 19 | . . . . . . . . . . 10 1 1 2 3 1 . 1 . . . . . . . . AID 5 | . . . . . . . . . . . . . . . 2 . . . . 3 . . . . . EXPLORE 5 | . . . . . . . . . . . . . . . . . 3 . . 1 . . . . 1 RETURN 123 | . . . . . . 4 . 2 19 11 . . 10 22 5 2 1 6 12 26 . 3 . . . Ally Attacks 797 | . . . . 3 28 32 . . 71 257 42 25 69 77 56 5 4 22 42 46 . 18 . . . Total Damage 23654 | . . . . 52 465 427 . . 1772 6177 795 1064 3068 1647 1058 133 355 1274 3057 1705 . 605 . . . Kills 149 | . . . . 1 1 5 . . 16 45 2 4 19 13 8 . . 7 16 9 . 3 . . . Allies Corrupted 5 | . . . . . . . . . . . . . 3 . . 1 . . . 1 . . . . . Allies Melted 1 | . . . . . . . . . . . . . . . . . . . 1 . . . . . . Intel | -11 -10 -10 -9 -6 -6 -6 -6 -5 -5 -5 -5 -5 -5 -4 -4 -4 -4 -3 -3 -3 -3 -2 -2 -2 -1 ------- Run | Yrd Mat Sub Scr Fac Low Low Zio Pro Fac Ext Cet Arc Hub Fac Upp Upp War Pro Res Arm Lab Res Qua Frg Acc Active Infowar (turns) 21619 | 27 1426 3249 . 581 939 1073 910 1213 123 . . . . 360 . 20 29 . 1515 2285 28 1297 2321 3842 381 Optics 83 | . . . . . . . . . . . . . . . . . . . . . . . . . 83 Sensors 5787 | . . . . . . . . . . . . . . . . . . . . . 28 1101 2120 2538 . IFF 4258 | . . . . . 939 1073 910 1213 123 . . . . . . . . . . . . . . . . Terrain 920 | 19 23 581 . 297 . . . . . . . . . . . . . . . . . . . . . Structural 3162 | . . . . . . . . . . . . . . . . . . . . 1 . 486 912 1763 . Seismic 4365 | 8 1403 2668 . 284 . . . . . . . . . . . . . . . . . 2 . . . Cloaking 9801 | . . . . . . . . . . . . . . . . . 29 . 1292 1055 . 1140 2245 3742 298 Jamming 7198 | . . . . . . . . . . . . . . 2 . . . . 1510 2189 . . 268 3229 . ECM 380 | . . . . . . . . . . . . . . 358 . 20 . . . 2 . . . . . Robot Analysis Total 2 | . . . . . . . . . . . . . . . . . . . . . . . 2 . . Derelict Logs Recovered 17 | . . 2 5 . 2 2 1 2 . . . . . . 2 1 . . . . . . . . . Drone Launches 252 | . . . . . . 12 . 6 39 14 . . 24 46 15 6 3 18 22 42 . 3 . . 2 Drone Recoveries 249 | . . . . . . 12 . 6 39 14 . . 24 46 15 6 3 18 21 40 . 3 . . 2 Exploration | -11 -10 -10 -9 -6 -6 -6 -6 -5 -5 -5 -5 -5 -5 -4 -4 -4 -4 -3 -3 -3 -3 -2 -2 -2 -1 ------------- Run | Yrd Mat Sub Scr Fac Low Low Zio Pro Fac Ext Cet Arc Hub Fac Upp Upp War Pro Res Arm Lab Res Qua Frg Acc Turns Passed 46115 | 228 1426 4198 4704 2407 939 1135 917 1236 2172 1636 410 2650 807 2963 1184 1195 853 1246 1845 2471 352 1354 2445 4779 563 Spaces Moved 27100 | 95 775 2296 2378 1577 783 901 789 814 1469 1027 196 502 474 1689 1052 1006 677 1067 1247 1554 269 759 1280 2057 367 Core 410 | 1 . . 329 . . . . . . . . 80 . . . . . . . . . . . . . Treads 4107 | 84 11 1900 . . . . . . . . . . . 1 . . . . . . . 10 417 1684 . Legs 7890 | . . . . 1551 783 901 789 814 1469 1002 . . . . . . . . . . . . . 214 367 Wheels 14693 | 10 764 396 2049 26 . . . . . 25 196 422 474 1688 1052 1006 677 1067 1247 1554 269 749 863 159 . Hover . | . . . . . . . . . . . . . . . . . . . . . . . . . . Flight . | . . . . . . . . . . . . . . . . . . . . . . . . . . Fastest Speed 50 | 50 95 125 50 110 114 114 114 114 112 109 109 121 121 90 100 100 100 100 100 100 100 100 100 110 110 Average Speed 135 | 150 103 164 193 113 114 114 114 114 114 111 120 501 132 123 100 100 109 109 109 104 100 111 132 159 110 Slowest Speed 2500 | 160 160 395 230 265 114 114 114 114 187 112 121 2500 133 240 100 110 110 110 110 110 100 295 295 295 113 Overloaded Moves . | . . . . . . . . . . . . . . . . . . . . . . . . . . Propulsion Burnouts . | . . . . . . . . . . . . . . . . . . . . . . . . . . Robots Hopped . | . . . . . . . . . . . . . . . . . . . . . . . . . . Potential Cave-ins 24 | . . . . . . . . . . . . . 2 . . . . . 2 . . . . 20 . Cave-ins Triggered 1 | . . . . . . . . . . . . . . . . . . . . . . . . 1 . Teleports 8 | . . . . . . . . . . . . . . . . . . . . . . . . 1 7 Exploration Rate (%) 67 | 6 93 77 90 44 87 94 83 87 40 90 48 98 35 33 95 96 94 95 37 63 94 25 86 45 16 Regions Visited 25 Branch Regions 18 Pre-discovered Areas 18 | . 3 . 4 1 . 1 4 . . . . . . 1 . 2 . . . . . . 2 . . Known Exits Taken 16 | . 1 . . 1 1 1 . 1 1 1 . . 1 1 1 . . 1 1 . 1 1 1 1 . Unknown Exits Taken 9 | 1 . 1 1 . . . 1 . . . 1 1 . . . 1 1 . . 1 . . . . . Scrap Searched 38 | . . 5 11 . 3 2 5 2 . . . . . . 2 4 . 4 . . . . . . . Spaces Dug 413 | . 15 20 . 65 5 7 . 15 35 6 . . 21 32 . 3 . 6 22 65 . 25 22 21 28 Terrain Destroyed 1011 | . 23 20 . 93 6 15 . 43 69 12 4 1 23 148 13 34 . 15 34 78 . 47 35 241 57 Melee 100 | . 6 18 . 39 4 6 . 3 . . . . . . . . . . . 17 . 3 . . 4 Projectile 497 | . 17 2 . 8 2 7 . 22 44 12 4 1 23 67 13 34 . 15 34 22 . 31 35 62 42 AOE 399 | . . . . 46 . 2 . 18 25 . . . . 81 . . . . . 39 . 13 . 175 . Terrain Rammed . | . . . . . . . . . . . . . . . . . . . . . . . . . . Walls Destroyed . | . . . . . . . . . . . . . . . . . . . . . . . . . . Machines Disabled . | . . . . . . . . . . . . . . . . . . . . . . . . . . Actions | -11 -10 -10 -9 -6 -6 -6 -6 -5 -5 -5 -5 -5 -5 -4 -4 -4 -4 -3 -3 -3 -3 -2 -2 -2 -1 --------- Run | Yrd Mat Sub Scr Fac Low Low Zio Pro Fac Ext Cet Arc Hub Fac Upp Upp War Pro Res Arm Lab Res Qua Frg Acc Total 34956 | 144 1292 2561 2490 1992 818 981 807 1079 1831 1440 334 614 608 2336 1151 1148 771 1123 1680 2322 353 1241 2012 3353 475 Wait 3770 | 3 431 86 11 52 2 44 . 222 172 230 81 50 72 337 52 78 35 12 146 357 43 257 498 490 9 Move 27074 | 94 774 2295 2377 1576 782 900 788 813 1468 1026 195 501 473 1688 1051 1005 676 1066 1246 1553 268 758 1279 2056 366 Hop . | . . . . . . . . . . . . . . . . . . . . . . . . . . Pick Up 445 | 7 12 28 62 37 4 2 4 . 7 5 9 3 2 30 1 6 6 5 24 61 11 7 17 90 5 Fast Attach 204 | 8 . 4 3 20 3 1 2 1 13 5 . 5 . 12 4 6 5 3 14 11 5 7 14 52 6 Attach 166 | . . 3 4 30 2 1 . . 4 7 3 2 6 15 . 1 1 2 15 8 3 5 7 37 10 Detach 103 | 1 . . 1 17 2 1 1 . 4 8 1 4 3 5 1 2 . . 13 4 3 2 6 21 3 Swap 728 | 1 29 29 3 33 4 13 5 12 48 22 5 3 22 53 16 10 12 12 49 74 1 58 66 139 9 Drop 477 | . 6 16 27 57 8 2 6 . 18 6 5 7 1 23 5 10 12 6 37 60 16 14 27 103 5 Fire 1672 | 30 24 54 . 108 7 11 . 26 93 55 35 39 29 171 20 30 16 17 135 153 . 130 96 336 57 Melee 189 | . 16 46 2 56 4 6 1 5 1 . . . . . . . . . . 39 3 3 2 . 5 Ram 2 | . . . . . . . . . . . . . . 2 . . . . . . . . . . . Kick 6 | . . . . 1 . . . . 3 2 . . . . . . . . . . . . . . . Crush 1 | . . . . . . . . . . . . . . . . . . . . . . . . 1 . Escape Stasis 33 | . . . . 5 . . . . . . . . . . . . . . . . . . . 28 . Rewire 78 | . . . . . . . . . . 74 . . . . 1 . . . 1 2 . . . . . Trap . | . . . . . . . . . . . . . . . . . . . . . . . . . . Miscellaneous 8 | . . . . . . . . . . . . . . . . . 8 . . . . . . . . Route ------- -11/Scrapyard -10/Materials (discovered 6 exits: *Mat x3 / [*Min x2] / *Sub) -10/Subcaves (discovered 4 exits: *Mat x2 / Rec / *Scr) -9/Scraptown (discovered 2 exits: *Fac x2) -6/Factory (discovered 6 exits: *Fac x4 / *Low x2) -6/Lower Caves -6/Lower Caves (discovered 2 exits: *Fac / *Zio) -6/Zion -5/Proximity Caves -5/Factory (discovered 8 exits: *Fac x4 / *Upp x2 / *Ext x2) -5/Extension (discovered 3 exits: *Fac x2 / *Cet) -5/Cetus -5/Archives (discovered 3 exits: *Fac / *Hub x2) -5/Hub_04(d) (discovered 4 exits: *Fac x4) -4/Factory (discovered 6 exits: Res x4 / *Upp x2) -4/Upper Caves -4/Upper Caves (discovered 2 exits: *Res / *War) -4/Warlord -3/Proximity Caves -3/Research (discovered 6 exits: *Res x3 / *Arm / Tes x2) -3/Armory (discovered 3 exits: Res x2 / [*Lab]) -3/Lab -2/Research (discovered 3 exits: Acc / *Qua x2) -2/Quarantine (discovered 3 exits: *Acc / *Sec / *Frg) -2/Protoforge -1/Access To Epsilon Eridani History --------- Turn | Location | Event 21 | -11/Scrapyard | Discovered new exit (range 15) 229 | -11/Scrapyard | Entered Materials 307 | -10/Materials | Build established: Mutant 318 | -10/Materials | Discovered new exit (range 6) 440 | -10/Materials | Discovered new exit (range 16) 851 | -10/Materials | Discovered new exit (range 7) 1087 | -10/Materials | Learned Storage emergency access door positions 1147 | -10/Materials | Learned 2 Mines zone layouts 1195 | -10/Materials | Learned Storage emergency access door positions 1235 | -10/Materials | Learned 4 Subcaves zone layouts 1265 | -10/Materials | Learned location of Subcaves (-10) 1293 | -10/Materials | Identified exit to Materials 1312 | -10/Materials | Identified exit to Subcaves 1341 | -10/Materials | Learned 4 Recycling zone layouts 1423 | -10/Materials | Discovered new exit (range 7) 1428 | -10/Materials | Learned location of 2 exits from Materials 1529 | -10/Materials | Derelicts attacked the area 1655 | -10/Materials | Entered Subcaves 1656 | -10/Subcaves | Approached by a straggling Scientist 1656 | -10/Subcaves | Identified exit to Materials 1679 | -10/Subcaves | Identified exit to Recycling 1775 | -10/Subcaves | Shifting Twisted Machinery released Sub. Laser 1779 | -10/Subcaves | Visited Clippyterm 1783 | -10/Subcaves | Learned Research security intel 1783 | -10/Subcaves | Learned 40 Factory zone layouts 1882 | -10/Subcaves | A swath of the cavern ceiling suddenly collapsed 1953 | -10/Subcaves | Disturbed a concealed Subdweller 2495 | -10/Subcaves | Shifting Twisted Machinery released Mak. Hammer 2508 | -10/Subcaves | Shifting Twisted Machinery released Sub. Optics 3347 | -10/Subcaves | Scientist uncovered a shortcut to Scraptown 3354 | -10/Subcaves | A swath of the cavern ceiling suddenly collapsed 4537 | -10/Subcaves | Visited 4L-MR0's lab 4652 | -10/Subcaves | Shifting Twisted Machinery released Shrapnel Trap 4654 | -10/Subcaves | Shifting Twisted Machinery released Sub. Monowheel 4745 | -10/Subcaves | A Subdweller sparked back to life 4745 | -10/Subcaves | A Subdweller sparked back to life 4781 | -10/Subcaves | Core integrity fell below 50% 4789 | -10/Subcaves | Core integrity fell below 20% 4806 | -10/Subcaves | Found Power Bank 5214 | -10/Subcaves | Found Arachnoskeleton 5386 | -10/Subcaves | Build established: Hauler-Mutant 5853 | -10/Subcaves | Entered Scraptown 5853 | -9/Scraptown | System corruption cleaned by C-Scrubber 6518 | -9/Scraptown | Heard Great Nut preacher, LISTEN AND RECITE! 6636 | -9/Scraptown | Discovered new exit (range 11) 6736 | -9/Scraptown | Scanned Subdweller tech in exchange for log data 6741 | -9/Scraptown | Learned Factory emergency access door positions 6745 | -9/Scraptown | Learned location of 2 exits from Lower Caves 6747 | -9/Scraptown | Learned location of Extension (-5) 6750 | -9/Scraptown | Learned Factory interactive machine intel 6798 | -9/Scraptown | Visited SPCMW 6838 | -9/Scraptown | Visited Cyclists 6884 | -9/Scraptown | Visited Bundlers 7075 | -9/Scraptown | Visited Shadow of the Wyrm 7349 | -9/Scraptown | Visited Assassins FH 7378 | -9/Scraptown | Visited TADAMA 7516 | -9/Scraptown | Visited UFD Registry 7516 | -9/Scraptown | Registered with UFD as "Slugstep" 7613 | -9/Scraptown | Entered Cyclist Reading Room 7747 | -9/Scraptown | Visited Junk Repository 7835 | -9/Scraptown | Visited Supply Room 7891 | -9/Scraptown | Visited Junk Cannon Lab 7916 | -9/Scraptown | Found Prototype Special Weapon 8010 | -9/Scraptown | Visited Curators Association 8115 | -9/Scraptown | Delivered Scrap Shield to a Scientist 8331 | -9/Scraptown | Visited Scrap Suit Storage 8368 | -9/Scraptown | Visited Scrapoid Research Area 8401 | -9/Scraptown | Visited Cartography Club 8452 | -9/Scraptown | Visited DA-N13 Charitable Foundation 8461 | -9/Scraptown | Found DCF Scrap (27 items) 8552 | -9/Scraptown | Visited Abandonware Association 8574 | -9/Scraptown | Learned abandonware demo "TRNCOAT.EXE" 8574 | -9/Scraptown | Learned abandonware demo "KABOOM.EXE" 8627 | -9/Scraptown | Visited Scrapoid Pod Storage 8671 | -9/Scraptown | Found Scrapoid Pod 8827 | -9/Scraptown | Found Surveybot 17 Chip 8868 | -9/Scraptown | Learned 4 Access zone layouts 8868 | -9/Scraptown | Learned 12 Lower Caves zone layouts 8868 | -9/Scraptown | Learned 8 Proximity Caves zone layouts 8868 | -9/Scraptown | Learned 16 Proximity Caves zone layouts 8868 | -9/Scraptown | Learned 4 Hub_04(d) zone layouts 8868 | -9/Scraptown | Learned location of 2 exits from Lower Caves 8868 | -9/Scraptown | Learned location of 1 exit from Proximity Caves 8868 | -9/Scraptown | Learned location of 2 exits from Research 8963 | -9/Scraptown | Found Deep Structural Scanner 9133 | -9/Scraptown | Identified Junk Cannon 10337 | -9/Scraptown | Found Scrap Suit 10340 | -9/Scraptown | Found Scrap Suit 10427 | -9/Scraptown | Met Optimus 10427 | -9/Scraptown | Accepted into 0bPrime 10542 | -9/Scraptown | Civil war broke out across Scraptown 10543 | -9/Scraptown | Discovered new exit (range 5) 10557 | -9/Scraptown | Entered Factory 10557 | -6/Factory | Evolved 8 slots: Propulsion x2, Utility x5, Weapon x1 10558 | -6/Factory | Identified exit to Lower Caves 10559 | -6/Factory | Identified exit to Factory 10561 | -6/Factory | Loaded intel: 53 interactive machine locations 10585 | -6/Factory | Lost 4 allies 10609 | -6/Factory | Attached Arachnoskeleton, gained temporary slots: Propulsion x3 10926 | -6/Factory | Attached Power Bank, gained temporary slots: Power x3 10934 | -6/Factory | Loaded intel: 8 recycling unit locations 11085 | -6/Factory | Learned location of Protoforge (-2) 11305 | -6/Factory | Repaired Broken Mapping Drone Bay? 11630 | -6/Factory | Build established: Mutant 12864 | -6/Factory | Scrapoids reinforcements arrived? 12964 | -6/Factory | Entered Lower Caves 12964 | -6/Lower Caves | Accompanied by 5 allies 12965 | -6/Lower Caves | Identified exit to Lower Caves 12966 | -6/Lower Caves | UFD Scientist delivered a prototype 12971 | -6/Lower Caves | Found Prototype Protection 12999 | -6/Lower Caves | Encountered a Warlord checkpoint 13173 | -6/Lower Caves | Build established: Commander-Mutant 13447 | -6/Lower Caves | Learned Factory garrison access intel 13450 | -6/Lower Caves | Entered a destroyed Warlord outpost 13903 | -6/Lower Caves | Entered another Lower Caves area 13903 | -6/Lower Caves | Accompanied by 4 allies 13904 | -6/Lower Caves | Identified exit to Zion 14022 | -6/Lower Caves | Lost 3 allies 14130 | -6/Lower Caves | Learned Factory security intel 14155 | -6/Lower Caves | Encountered a Warlord checkpoint 14297 | -6/Lower Caves | Build established: Mutant 14722 | -6/Lower Caves | Spotted B-75 Beast 14768 | -6/Lower Caves | Destroyed B-75 Beast 15038 | -6/Lower Caves | Entered Zion 15091 | -6/Zion | Discovered new exit (range 12) 15195 | -6/Zion | System corruption cleaned by Quarantine Array 15509 | -6/Zion | Learned location of Quarantine (-2) 15523 | -6/Zion | Received a visual enhancement algorithm 15591 | -6/Zion | Given the Hacking Drone Bay 15594 | -6/Zion | Found Prototype Device 15599 | -6/Zion | Identified Hacking Drone Bay 15623 | -6/Zion | Turned away by Imprinter 15682 | -6/Zion | Learned location of Warlord (-4) 15789 | -6/Zion | Found Prototype Device 15789 | -6/Zion | Identified Phasing AFG 15955 | -6/Zion | Entered Proximity Caves 16173 | -5/Proximity Caves | Learned Factory garrison access intel 16221 | -5/Proximity Caves | Learned location of 2 exits from Lower Caves 16221 | -5/Proximity Caves | Learned Research emergency access door positions 16221 | -5/Proximity Caves | Learned Extension stockpile data 16221 | -5/Proximity Caves | Learned Extension terminal intel 16458 | -5/Proximity Caves | Attracted the attention of an 0b10 checkpoint 16511 | -5/Proximity Caves | Build established: Tank 16980 | -5/Proximity Caves | Found DCF Scrap (15 items) 17191 | -5/Proximity Caves | Entered Factory 17191 | -5/Factory | Evolved 2 slots: Propulsion x1, Utility x1 17192 | -5/Factory | Identified exit to Upper Caves 17194 | -5/Factory | Loaded intel: 4 garrison access locations 17389 | -5/Factory | Loaded intel: 8 recycling unit locations 17596 | -5/Factory | Build established: Hacker-Tank 17842 | -5/Factory | Identified exit to Factory 17843 | -5/Factory | Identified exit to Extension 18949 | -5/Factory | Scrapoids reinforcements arrived? 18996 | -5/Factory | Allied Derelicts emerged from ambush trap array 19104 | -5/Factory | Garrison activated, responded to threat 19204 | -5/Factory | Lost 3 allies 19247 | -5/Factory | Scraphulk reinforcements arrived 19297 | -5/Factory | Cargo convoy interrupted 19363 | -5/Factory | Entered Extension 19363 | -5/Extension | Accompanied by 3 allies 19365 | -5/Extension | Loaded intel: 16 terminal locations 19501 | -5/Extension | Rescued a captive Derelict 19501 | -5/Extension | Rescued a captive Derelict 19557 | -5/Extension | Found Scrap Suit 19616 | -5/Extension | Identified exit to Cetus 19697 | -5/Extension | Rescued a captive Derelict 19829 | -5/Extension | Rescued a captive Derelict 19962 | -5/Extension | Spotted B-75 Beast 19982 | -5/Extension | Allies destroyed B-75 Beast 19984 | -5/Extension | Spotted B-75 Beast 19999 | -5/Extension | Allies destroyed B-75 Beast 20013 | -5/Extension | Identified Enh. Scrap Shield 20030 | -5/Extension | Lost 5 allies 20248 | -5/Extension | Rescued A7 20302 | -5/Extension | Build established: Hacker-Gunner 20412 | -5/Extension | Rescued a captive Derelict 20413 | -5/Extension | Rescued a captive Derelict 20429 | -5/Extension | Rescued a captive Derelict 20643 | -5/Extension | Build established: Commander-Gunner 20662 | -5/Extension | Disrupted transfer network 20863 | -5/Extension | First assault squad dispatched 20972 | -5/Extension | Found Scrap Suit 20999 | -5/Extension | Entered Cetus 20999 | -5/Cetus | Accompanied by 11 allies (A7) 21004 | -5/Cetus | Acquired a Cetus Manufacturing Module code from A7 21022 | -5/Cetus | Spotted Cetus Guard 21022 | -5/Cetus | Spotted Cetus Guard 21023 | -5/Cetus | Spotted Cetus Guard 21024 | -5/Cetus | Spotted Cetus Guard 21032 | -5/Cetus | Destroyed Cetus Guard 21038 | -5/Cetus | Allies destroyed Cetus Guard 21049 | -5/Cetus | Destroyed Cetus Guard 21055 | -5/Cetus | Destroyed Cetus Guard 21083 | -5/Cetus | Lost 5 allies 21132 | -5/Cetus | Started Cetus Manufacturing Module 21157 | -5/Cetus | Manufactured an Enhanced Grunt 21182 | -5/Cetus | Manufactured an Enhanced Grunt 21207 | -5/Cetus | Manufactured an Enhanced Grunt 21232 | -5/Cetus | Manufactured an Enhanced Grunt 21257 | -5/Cetus | Manufactured an Enhanced Grunt 21270 | -5/Cetus | Murdered A7 21273 | -5/Cetus | Extracted ID and sensor layout for unrecognized location from A7's data core 21349 | -5/Cetus | Discovered new exit (range 16) 21409 | -5/Cetus | Entered Archives 21409 | -5/Archives | Accompanied by 9 allies 21489 | -5/Archives | Discovered new exit (range 16) 21526 | -5/Archives | Discovered new exit (range 15) 21592 | -5/Archives | Discovered exit to Factory (range 14) 24059 | -5/Archives | Entered Hub_04(d) 24059 | -5/Hub_04(d) | Accompanied by 7 allies 24566 | -5/Hub_04(d) | Spotted B-75 Beast 24659 | -5/Hub_04(d) | First assault squad dispatched 24763 | -5/Hub_04(d) | Network Hub disabled 24767 | -5/Hub_04(d) | Network Hub disabled 24862 | -5/Hub_04(d) | System corruption reached 10% 24864 | -5/Hub_04(d) | Lost 3 allies 24866 | -5/Hub_04(d) | Entered Factory 24866 | -4/Factory | Evolved 2 slots: Power x1, Utility x1 24867 | -4/Factory | Identified exit to Research 24868 | -4/Factory | Loaded intel: 3 garrison access locations 24966 | -4/Factory | Identified exit to Upper Caves 25068 | -4/Factory | Found Quantum Capacitor 25126 | -4/Factory | Spotted B-86 Titan 25197 | -4/Factory | Repaired Cld. Plasma Cannon 25498 | -4/Factory | Build established: Scavenger-Tank 25963 | -4/Factory | Repaired Centrium Medium Armor Plating? 26119 | -4/Factory | Repaired Centrium Medium Armor Plating 26222 | -4/Factory | Learned Quarantine trap positions 26316 | -4/Factory | Learned Quarantine trap positions 26325 | -4/Factory | Loaded intel: 8 recycling unit locations 26369 | -4/Factory | Learned Research trap positions 26399 | -4/Factory | Learned Armory garrison access intel 26870 | -4/Factory | Scrapoids reinforcements arrived? 26925 | -4/Factory | Found Scrap Suit 27057 | -4/Factory | Lost 3 allies 27116 | -4/Factory | First assault squad dispatched 27175 | -4/Factory | Found Scrap Suit 27355 | -4/Factory | Lost 5 parts (2u3w) 27370 | -4/Factory | Build established: Scavenger-Scrapper 27652 | -4/Factory | Scrapoids reinforcements arrived? 27677 | -4/Factory | P-70 Sage assimilated allied 04F17-D 27719 | -4/Factory | Found Prototype Processor 27719 | -4/Factory | Identified Exp. Targeting Computer 27815 | -4/Factory | Fabricated M-28 Smith (x1) 27829 | -4/Factory | Entered Upper Caves 27829 | -4/Upper Caves | Accompanied by 5 allies 27830 | -4/Upper Caves | Identified exit to Upper Caves 28109 | -4/Upper Caves | Attracted the attention of an 0b10 checkpoint 28122 | -4/Upper Caves | Found Scrap Suit 28446 | -4/Upper Caves | Learned Research emergency access door positions 29013 | -4/Upper Caves | Entered another Upper Caves area 29013 | -4/Upper Caves | Accompanied by 3 allies 29061 | -4/Upper Caves | Lost 3 allies 29076 | -4/Upper Caves | Learned Research terminal intel 29584 | -4/Upper Caves | Learned Factory security intel 29584 | -4/Upper Caves | Learned Extension security intel 29999 | -4/Upper Caves | Attracted the attention of an 0b10 checkpoint 30033 | -4/Upper Caves | Discovered new exit (range 16) 30140 | -4/Upper Caves | Attacked by a delusional Derelict stockpiling parts 30208 | -4/Upper Caves | Entered Warlord 30246 | -4/Warlord | System corruption cleaned by Quarantine Array 30438 | -4/Warlord | Found Prototype Device 30439 | -4/Warlord | Identified Exp. Focal Shield 30460 | -4/Warlord | Found Prototype Reactor 30460 | -4/Warlord | Identified Vortex Chain Reactor 30467 | -4/Warlord | Found Prototype Device 30467 | -4/Warlord | Identified Exp. Cloaking Device 30476 | -4/Warlord | Found Prototype Hackware 30480 | -4/Warlord | Identified System Mapper 30589 | -4/Warlord | Visited the Vortex Lab 30594 | -4/Warlord | Warlord's base attacked by MAIN.C 30597 | -4/Warlord | Found Prototype Energy Cannon 30600 | -4/Warlord | Found Prototype Energy Cannon 30869 | -4/Warlord | Rebuked by Warlord 30944 | -4/Warlord | Warlord forces counterattacked 30990 | -4/Warlord | Lost 4 allies 31014 | -4/Warlord | Opened side exit 31036 | -4/Warlord | Discovered new exit (range 10) 31061 | -4/Warlord | Entered Proximity Caves 31061 | -3/Proximity Caves | Accompanied by 5 allies 31071 | -3/Proximity Caves | Lost 3 allies 31115 | -3/Proximity Caves | Identified Vortex Cannon (x2) 31391 | -3/Proximity Caves | Spotted B-86 Titan 31398 | -3/Proximity Caves | Allies destroyed B-86 Titan 31809 | -3/Proximity Caves | Found Alien Artifact 31809 | -3/Proximity Caves | Identified Core Expander 31809 | -3/Proximity Caves | Installed Core Expander, added new Propulsion slot 32307 | -3/Proximity Caves | Entered Research 32307 | -3/Research | Accompanied by 4 allies 32307 | -3/Research | Evolved 2 slots: Utility x2 32308 | -3/Research | Identified exit to Armory 32308 | -3/Research | Identified exit to Testing 32309 | -3/Research | Identified exit to Research 32310 | -3/Research | Loaded intel: 58 trap records 32313 | -3/Research | Loaded intel: 23 terminal locations 33546 | -3/Research | Fabricated Exp. Biometal Heavy Treads? 33690 | -3/Research | Spotted B-86 Titan 33702 | -3/Research | Destroyed B-86 Titan 33716 | -3/Research | Loaded intel: 5 recycling unit locations 33846 | -3/Research | Fabricated B-74 Champion? 33903 | -3/Research | Scraphulk reinforcements arrived? 34025 | -3/Research | Learned Testing garrison access intel 34041 | -3/Research | Learned Research trap positions 34049 | -3/Research | Found Scrap Suit 34057 | -3/Research | First assault squad dispatched 34066 | -3/Research | Learned Access stockpile data 34097 | -3/Research | System corruption reached 10% 34102 | -3/Research | Learned Research trap positions 34121 | -3/Research | Lost 3 parts (3u) 34152 | -3/Research | Entered Armory 34170 | -3/Armory | Lost 3 parts (1p1u1w) 34218 | -3/Armory | Repaired Ovr. Coil Gun 34513 | -3/Armory | Found Prototype Launcher 34539 | -3/Armory | Identified Hellfire Missile Launcher 34545 | -3/Armory | Found Prototype Hackware 34564 | -3/Armory | Identified Exp. System Shield 34566 | -3/Armory | Found Prototype Device 34577 | -3/Armory | Identified Exp. Thermal Shield 34616 | -3/Armory | Found Prototype Processor 34627 | -3/Armory | Identified Exp. Signal Interpreter 34944 | -3/Armory | Fabricated M-28 Smith? 35061 | -3/Armory | P-80 Master assimilated allied Smith 8a 35453 | -3/Armory | Scraphulk reinforcements arrived? 35500 | -3/Armory | Destroyed 03A03-K 35522 | -3/Armory | Found Scrap Suit 35640 | -3/Armory | Discovered exit to Research (range 19) 35957 | -3/Armory | Fabricated M-28 Smith? 36506 | -3/Armory | Scrapoids reinforcements arrived? 36615 | -3/Armory | Discovered new exit (range 5) 36623 | -3/Armory | Entered Lab 36623 | -3/Lab | Accompanied by 2 allies 36631 | -3/Lab | Lost 3 allies 36638 | -3/Lab | Discovered exit to Research (range 9) 36650 | -3/Lab | Hidden lab's door opened automatically 36650 | -3/Lab | Sensor layout match revealed 36651 | -3/Lab | Gained access to the hidden lab's interior 36761 | -3/Lab | Found Prototype Energy Gun 36761 | -3/Lab | Identified Tachyon Dispersion Ray 36765 | -3/Lab | Found Prototype Energy Cannon 36765 | -3/Lab | Identified Potential Cannon 36771 | -3/Lab | Found Prototype Protection 36771 | -3/Lab | Identified Med. Regenerative Plating 36774 | -3/Lab | Found Prototype Hackware 36832 | -3/Lab | Found Prototype Special Weapon 36879 | -3/Lab | Found Alien Artifact 36879 | -3/Lab | Identified Integrated Reactor 36879 | -3/Lab | Installed Integrated Reactor, increased core energy generation (+10) 36889 | -3/Lab | Found Alien Artifact 36929 | -3/Lab | Identified Quantum Router 36940 | -3/Lab | Identified Gui. Remote Datajack 36975 | -3/Lab | Entered Research 36975 | -2/Research | Accompanied by 2 allies 36975 | -2/Research | Evolved 2 slots: Power x1, Utility x1 36976 | -2/Research | Identified exit to Access 36976 | -2/Research | Identified exit to Quarantine 36977 | -2/Research | Loaded intel: 64 trap records 37007 | -2/Research | Loaded intel: 5 recycling unit locations 37087 | -2/Research | Identified Transdimensional Reconstructor 37172 | -2/Research | Repaired Broken Exp. Heat Sink? 37183 | -2/Research | Scraphulk reinforcements arrived? 37277 | -2/Research | Lost 3 allies 37305 | -2/Research | Found Scrap Suit 37946 | -2/Research | Repaired Exp. Cooling System 38148 | -2/Research | Spotted B-90 Cyclops 38329 | -2/Research | Entered Quarantine 38330 | -2/Quarantine | Loaded intel: 17 trap records 38339 | -2/Quarantine | Cryocooling Duct disabled 38354 | -2/Quarantine | Ambient heat levels rising (+20) 38354 | -2/Quarantine | Non-combat units ordered to evacuate 38395 | -2/Quarantine | Repaired Ovr. Nova Cannon? 38791 | -2/Quarantine | System corruption reached 10% 38827 | -2/Quarantine | Found Alien Artifact 38908 | -2/Quarantine | Found Alien Reactor 39058 | -2/Quarantine | Identified Matter Drive 39073 | -2/Quarantine | Found Alien Impact Weapon 39119 | -2/Quarantine | Cryocooling Duct disabled 39134 | -2/Quarantine | Ambient heat levels rising (+20) 39134 | -2/Quarantine | Combat units ordered to evacuate 39234 | -2/Quarantine | Quarantine Guard activated 39517 | -2/Quarantine | Found Alien Artifact 39521 | -2/Quarantine | Identified Core Stripper 39528 | -2/Quarantine | Found Alien Artifact 39529 | -2/Quarantine | Identified Dimensional Node Initializer 39529 | -2/Quarantine | Initialized slip node 39532 | -2/Quarantine | Found Dimensional Node Initializer 39723 | -2/Quarantine | Spotted Quarantine Guard 39746 | -2/Quarantine | Destroyed Quarantine Guard 39834 | -2/Quarantine | Spotted Quarantine Guard 39931 | -2/Quarantine | Learned 8 Research zone layouts 39979 | -2/Quarantine | Spotted Quarantine Guard 39983 | -2/Quarantine | Identified exit to Protoforge 40024 | -2/Quarantine | Learned Research scanalyzer intel 40027 | -2/Quarantine | Spotted Fortress 40036 | -2/Quarantine | Destroyed Fortress 40046 | -2/Quarantine | Found Vortex Chain Reactor 40053 | -2/Quarantine | Learned Section 7 garrison access intel 40066 | -2/Quarantine | Found Prototype Device 40066 | -2/Quarantine | Identified Thermal Barrier 40072 | -2/Quarantine | Learned Section 7 security intel 40076 | -2/Quarantine | Found Prototype Device 40076 | -2/Quarantine | Identified Exp. EM Shield 40099 | -2/Quarantine | Found Prototype Device 40099 | -2/Quarantine | Identified Exp. Force Field 40115 | -2/Quarantine | Found Vortex Chain Reactor 40121 | -2/Quarantine | Learned Research trap positions 40155 | -2/Quarantine | Identified exit to Section 7 40197 | -2/Quarantine | Learned Access repair station intel 40200 | -2/Quarantine | Spotted Quarantine Guard 40239 | -2/Quarantine | Destroyed Quarantine Guard 40279 | -2/Quarantine | Spotted Quarantine Guard 40284 | -2/Quarantine | Destroyed Quarantine Guard 40342 | -2/Quarantine | Destroyed Quarantine Guard 40378 | -2/Quarantine | Spotted Quarantine Guard 40385 | -2/Quarantine | Destroyed Quarantine Guard 40717 | -2/Quarantine | Build established: Hacker-Tank 40739 | -2/Quarantine | Spotted Quarantine Guard 40741 | -2/Quarantine | Spotted Quarantine Guard 40744 | -2/Quarantine | Destroyed Quarantine Guard 40749 | -2/Quarantine | Destroyed Quarantine Guard 40774 | -2/Quarantine | Entered Protoforge 41410 | -2/Protoforge | Discovered exit to Access (range 13) 41634 | -2/Protoforge | Initialized slip node 42183 | -2/Protoforge | Build established: Hacker-Skirmisher 42530 | -2/Protoforge | Spotted Immortal 42573 | -2/Protoforge | System corruption reached 30% 42593 | -2/Protoforge | Found Prototype Storage 42605 | -2/Protoforge | Found Prototype Ballistic Gun 42609 | -2/Protoforge | Found Prototype Ballistic Gun 42610 | -2/Protoforge | Spotted Immortal 42612 | -2/Protoforge | Spotted Immortal 42613 | -2/Protoforge | Identified Cep. NT7 Matterbank 42619 | -2/Protoforge | Destroyed Immortal 42626 | -2/Protoforge | Destroyed Immortal 42628 | -2/Protoforge | Destroyed Immortal 42640 | -2/Protoforge | Identified Cep. XC Strikerail (x2) 42645 | -2/Protoforge | Found Prototype Protection 42648 | -2/Protoforge | Identified Cep. Core Shell 42651 | -2/Protoforge | Found Corrupted Prototype Device 42660 | -2/Protoforge | Found Cep. XC Strikerail 42677 | -2/Protoforge | Identified Cep. Antimissile System 42834 | -2/Protoforge | Superfortress began startup sequence 42834 | -2/Protoforge | Scanned by Researcher 42855 | -2/Protoforge | Additional patrols dispatched to research labs 42886 | -2/Protoforge | Crushed by falling debris 42889 | -2/Protoforge | Spotted Hotshot 42889 | -2/Protoforge | Spotted Hotshot 42892 | -2/Protoforge | Spotted Hotshot 42905 | -2/Protoforge | Destroyed Hotshot 42907 | -2/Protoforge | Destroyed Hotshot 42938 | -2/Protoforge | Destroyed Hotshot 42945 | -2/Protoforge | Spotted Hotshot 42951 | -2/Protoforge | Spotted V916-r 42962 | -2/Protoforge | Destroyed V916-r 42985 | -2/Protoforge | Found Prototype Hover Unit 43009 | -2/Protoforge | Found Prototype Device 43013 | -2/Protoforge | Identified Cep. Combat Aerolev Unit 43033 | -2/Protoforge | Spotted Immortal 43034 | -2/Protoforge | Spotted Immortal 43064 | -2/Protoforge | Destroyed Immortal 43120 | -2/Protoforge | Destroyed Immortal 43122 | -2/Protoforge | Spotted Decapitator 43122 | -2/Protoforge | Spotted Decapitator 43122 | -2/Protoforge | Spotted Decapitator 43122 | -2/Protoforge | Spotted Decapitator 43181 | -2/Protoforge | Destroyed Decapitator 43181 | -2/Protoforge | Destroyed Decapitator 43181 | -2/Protoforge | Destroyed Decapitator 43186 | -2/Protoforge | Destroyed Decapitator 43243 | -2/Protoforge | Build established: Hacker-Tank 43247 | -2/Protoforge | Identified Crosscalibrator 43250 | -2/Protoforge | Found Faulty Cep. Smart ZDS 43253 | -2/Protoforge | Found Faulty Cep. Smart ZDS 43273 | -2/Protoforge | Found Cep. Rapid Grenade Launcher 43287 | -2/Protoforge | Found Prototype Launcher 43292 | -2/Protoforge | Identified Cep. EMP Blanket Launcher 43297 | -2/Protoforge | Found Prototype Launcher 43300 | -2/Protoforge | Identified Cep. Concussive Dispersal Blaster 43487 | -2/Protoforge | Destroyed Hotshot 43545 | -2/Protoforge | Found Cep. Chromion Battery 43548 | -2/Protoforge | Found Cep. Chromion Battery 43553 | -2/Protoforge | Found Cep. Matter Streamer 43774 | -2/Protoforge | First assault squad dispatched 43855 | -2/Protoforge | Forge Plexus network access discovered 43913 | -2/Protoforge | Spotted Decapitator 43913 | -2/Protoforge | Spotted Decapitator 43917 | -2/Protoforge | Destroyed Decapitator 43920 | -2/Protoforge | Spotted Decapitator 43929 | -2/Protoforge | Destroyed Decapitator 43939 | -2/Protoforge | Core integrity fell below 50% 43944 | -2/Protoforge | Destroyed Decapitator 43990 | -2/Protoforge | Found Cep. Recoil Nullifier 43993 | -2/Protoforge | Found Faulty Cep. Networked Targeting System 43996 | -2/Protoforge | Found Faulty Cep. Networked Targeting System 44008 | -2/Protoforge | Found Cep. Melee Reflex Suite 44013 | -2/Protoforge | Found Cep. Hypertargeting System 44169 | -2/Protoforge | Found Cep. Antigrav Storage Unit 44176 | -2/Protoforge | Found Cep. Countertargeting System 44180 | -2/Protoforge | Found Cep. Weapon Articulator 44213 | -2/Protoforge | Found Exp. Kinecellerator 44218 | -2/Protoforge | Found Exp. Kinecellerator 44282 | -2/Protoforge | Destroyed 9 combat bots 44347 | -2/Protoforge | Lost 3 parts (2n1w) 44442 | -2/Protoforge | Found Cep. Zero-point Core 44450 | -2/Protoforge | Found Faulty Cep. Zero-point Core 44452 | -2/Protoforge | Spotted V808-x 44524 | -2/Protoforge | Build established: Scavenger-Gunner 44571 | -2/Protoforge | Spotted Decapitator 44571 | -2/Protoforge | Spotted Decapitator 44571 | -2/Protoforge | Spotted Decapitator 44581 | -2/Protoforge | Destroyed Decapitator 44581 | -2/Protoforge | Destroyed Decapitator 44585 | -2/Protoforge | Destroyed Decapitator 44658 | -2/Protoforge | Spotted V715-k 44663 | -2/Protoforge | Found Cep. Miniperforator 44668 | -2/Protoforge | Destroyed V715-k 44671 | -2/Protoforge | Found Cep. Heavy Railcannon 44679 | -2/Protoforge | Found Cep. Variable Chargecaster 44702 | -2/Protoforge | Found Cep. RG22 Armor 44718 | -2/Protoforge | Found Prototype Device 44722 | -2/Protoforge | Found Cep. Helical Railcannon 44730 | -2/Protoforge | Found Faulty Cep. Plasma Driver 44733 | -2/Protoforge | Identified Exp. Shield Generator 44734 | -2/Protoforge | Spotted V866-j 44769 | -2/Protoforge | Destroyed V866-j 44819 | -2/Protoforge | Found Cep. Disintegration Ray 44850 | -2/Protoforge | Found Cep. Lightning Penetrator 44855 | -2/Protoforge | Found Cep. Plasma Driver 44887 | -2/Protoforge | Found Cep. Deflector Sword 44900 | -2/Protoforge | Found Cep. Miniperforator 45044 | -2/Protoforge | Destroyed 13 combat bots 45059 | -2/Protoforge | High security lockdown imminent 45139 | -2/Protoforge | High security lockdown engaged 45181 | -2/Protoforge | Found Cep. Biometal Exoskeleton 45185 | -2/Protoforge | Found Cep. Gyrokinetic System 45226 | -2/Protoforge | Found Cep. Fieldthrust Drive 45230 | -2/Protoforge | Found Cep. Biometal Exoskeleton 45264 | -2/Protoforge | Spotted AP7-3 45264 | -2/Protoforge | Spotted AP7-3 45267 | -2/Protoforge | Destroyed AP7-3 45268 | -2/Protoforge | Destroyed AP7-3 45295 | -2/Protoforge | Found Cep. Thermoelectric Network 45299 | -2/Protoforge | Found Cep. Cloak Mesh 45466 | -2/Protoforge | Found Cep. Nanofilaments [Conductive] 45466 | -2/Protoforge | Installed Cep. Nanofilaments [Conductive], 2 resistances modified: TH -15%, EM +25% 45482 | -2/Protoforge | Found Transdimensional Reconstructor 45491 | -2/Protoforge | Warped through subspace to slip node 45494 | -2/Protoforge | Found Cep. Navigation Harness 45516 | -2/Protoforge | Build established: Hacker-Gunner 45553 | -2/Protoforge | Entered Access 45553 | -1/Access | Evolved 2 slots: Propulsion x1, Utility x1 45556 | -1/Access | Loaded intel: 4 repair station locations 45648 | -1/Access | Found Quantum Capacitor 45667 | -1/Access | Spotted B-99 Colossus 45777 | -1/Access | Destroyed 15 combat bots 45803 | -1/Access | First assault squad dispatched 45862 | -1/Access | High security lockdown imminent 45912 | -1/Access | Identified Hpw. Transdimensional Reconstructor 45912 | -1/Access | Warped through subspace 45940 | -1/Access | Lost 6 parts (1p4u1w) 45942 | -1/Access | High security lockdown engaged 45980 | -1/Access | Spotted Executioner 45981 | -1/Access | Spotted B-99 Colossus 45994 | -1/Access | Spotted Executioner 46037 | -1/Access | Lost 3 parts (2u1w) 46088 | -1/Access | Spotted Executioner 46089 | -1/Access | Spotted Executioner 46090 | -1/Access | Spotted Executioner 46113 | -1/Access | Discovered new exit (range 3) 46114 | -1/Access | Identified exit to Surface 46116 | *** | Escaped! Last Messages --------------- 46091_ E-15 Imp destroyed. 46091_ Acquired Cep. RG22 Armor. 46092_ Penetrated by Slug. 46092_ Slug penetrates Door. 46092_ Cep. RG22 Armor blown off. 46092_ E-15 Imp destroyed. 46092_ P-80 Master resets B-74 Champion, system corruption cleaned. 46092_ P-80 Master resets H-88 Terminator, system corruption cleaned. 46093_ Acquired Cep. RG22 Armor. 46093_ Penetrated by Slug. 46093_ Slug penetrates Wall. 46093_ M-36 Artificer repairs G-73 Enforcer. 46094_ Drawn through space via semi-controlled quantum shift. 46104_ Penetrated by Slug. 46105_ Slug penetrates Wall. 46107_ Deflected attack with Cep. Deflector Sword. 46112_ System corrupted: Component data lost. 46113_ Drawn through space via semi-controlled quantum shift. 46113_ EXIT=FOUND 46114_ EXIT=IDENTIFIED: SURFACE Map ----- +----------------------------------------------------+ | ??????????????????????????????????# #????? | | ??????????????????????????????????# #????? | | ??????????????????????????????????# #????? | | ??????????????????????????????????#######"###????? | | ???????????????????????????????????????? #??????? | | ???????????????????????????????????????? ???????? | | ????????????????????????????????????????! ???????? | | ????????????????????????????????????????! ???????? | | ??????????????????????????????????????!?! ???????? | | ???????????????????????????????????????? ???????# | | ???????????????????????????????????????? ######## | | ?????????????????????????????????????###+## | | ?????????????????????????????????????# ^ | | ?????????????????????????????????????# %% | | ?????????????????????????????????????# | | ?????????????????????????????????????#+#+## | | ??????????????????????????????????????????# #### | | ??????????????????????????????????????????# #??# | | ??????????????????????????????????????????# +??? | | ??????????????????????????????????????????#####??? | | ?????????????????????????????????????????????????? | | ?????????????????????????????????????????????????? | | ??????????????????????""""""?????????????????????? | | ??????????????????????" "?????????????????????? | | ??????????????????????" "" "?????????????????????# | | ??????????????????????" "@ "?????????????????????? | | ??????????????????????" "?????????????????????? | | ??????????????????????""""""?????????????????????? | | ????????????????????????????????###########??????? | | ????????????????????????????????# #??????? | | ????????????????????????????????# #??????? | | ????????????????????????????????# #??????? | | ????????????????????????????????# #??????? | | ????????????????????????????????# #??????? | | ????????????????????????????????# #??????? | | ????????????????????????????????# #??????? | | ????????????????????????????????# #??????? | | ???????????????????#"" #### ########## | | ???????????????? | | ???????????????? | | ????????????????????############# ##"#####" | | ????????????????????????????????# ### | | ????????????????????????????????# #?# | | ????????????????????????????????# " #?# | | ????????????????????????????????# """ #?# | | ????????????????????????????????# """ #?# | | ????????????????????????????????# " #?# | | ????????????????????????????????# #?# | | ????????????????????????????????# #?# | | ????????????????????????????????# #?# | +----------------------------------------------------+ Best States ------------- Heat Dissipation 121 Coolant Potential 120 Energy Generation 83 Energy Capacity 2820 Matter Stores 300 Matter Capacity 300 Sight Range 22 Robot Scan Range 18 Terrain Scan Range 20 Terrain Scan Density 10 ECM Strength 1 Jamming Range 16 Cloak Strength 6 Base Temperature (-) 200 Armor Coverage 900 Resistance: KI 30 Resistance: EM 75 Propulsion Shielding 90 Utility Shielding 66 Projectile Deflection 15 Weapon Cycling 25 Evasion (%) 55 Targeting Accuracy 8 Core Analysis 6 Recoil Reduction 6 Kinecelleration 66 Offensive Hacking 20 Defensive Hacking 14 Authchip Count 2 Trap Extractor Capacity 8 Item Schematics ----------------- Plasma Cutter | -6/Factory | Scanalyzed Tesla Rifle | -6/Zion | Archive IFF Parser | -6/Zion | Archive Hvy. Flak Cannon | -6/Zion | Archive Remote Force Field | -6/Zion | Archive Antigrav System | -6/Zion | Archive Lgt. Fission Core | -6/Zion | Archive Dispersion Rifle | -6/Zion | Archive EM Shield | -6/Zion | Archive Adv. Sensor Array | -6/Zion | Archive Disruptor Cannon | -6/Zion | Archive Imp. Hardlight Generator | -6/Zion | Archive Enh. Gauss Cannon | -6/Zion | Archive Angular Momentum Engine | -6/Zion | Archive Phase Gun | -6/Zion | Archive Tiamat Missile Launcher | -6/Zion | Archive Tactical Coordination Suite | -5/Factory | Scanalyzed Huge Storage Unit | -5/Factory | Scanalyzed Com. HERF Cannon | -4/Factory | Hacked Graphene Brace | -3/Research | Scanalyzed Centrium Medium Armor Plating | -3/Research | Scanalyzed Core Analyzer | -3/Research | Scanalyzed Ovr. Nova Cannon | -2/Research | Scanalyzed Ovr. Linear Accelerator | -2/Research | Scanalyzed Exp. Heat Sink | -2/Research | Scanalyzed Robot Schematics ------------------ H-66 Slayer | -6/Zion | Archive R-10 Processor | -6/Zion | Archive M-28 Smith | -5/Extension | Hacked Fabricated ------------ M-28 Smith | x1 | -4/Factory Exp. Biometal Heavy Treads | x1 | -3/Research | Preloaded B-74 Champion | x3 | -3/Research | Preloaded M-28 Smith | x1 | -3/Armory | Authchip M-28 Smith | x1 | -3/Armory | Authchip Repaired ---------- Mapping Drone Bay | 99% | -6/Factory | Broken Cld. Plasma Cannon | 18% | -4/Factory Centrium Medium Armor Plating | 41% | -4/Factory Centrium Medium Armor Plating | 57% | -4/Factory Ovr. Coil Gun | 13% | -3/Armory Exp. Heat Sink | 41% | -2/Research | Broken Exp. Cooling System | 9% | -2/Research Ovr. Nova Cannon | 9% | -2/Quarantine Alien Tech Used ----------------- Core Expander Integrated Reactor Matter Drive Core Stripper Dimensional Node Initializer Concept Nanofilaments [Conductive] Transdimensional Reconstructor High-powered Transdimensional Reconstructor Achievements -------------- None Challenges ------------ None Game ------ Seed ShadingDirtyExpander Manual? 0 Play Time 12:29:55 Cumulative 850.2 hours Start 2025.05.15 @ 03:01:09 End 2025.05.16 @ 06:04:17 Sessions 15 Manual Loads 0 Difficulty Rogue Special Mode None Game No. 165 Rogue 165 Adventurer 0 Explorer 0 Win Type 0 Total 49 Types 23/4/7/1/2/1/6/2/2/1 Lore% 88 Gallery% 91 Achievement% 91 Wizard Run 0 Options --------- Layout 0 ASCII 0 Keyboard 0 Movement Numpad Keybinds 0 Fullscreen 1 Font 18/SmallcapsGlow Map View 76x50 Zoom Use 0% Tactical HUD 1 Map Filters NONE Filters NONE Steam 1 RUN: 7a01be6b-216c-45e5-94a1-8dc31f4218fb